{"text_format":"1","workbook":"xlsx","n_sheets":11,"sheets":["Ž","J","Jky","K","Kky","Žst","Žky","Administrace","IMPORT","Poznamky","TEMP"],"not_rendered":{"charts":0,"images":0,"macros":1,"external_links":0,"defined_names":3,"comments":0,"pivot_tables":0},"unopened":[],"bounds":{"document_bytes":16777216,"sheet_cells":100000,"rows_first":2000,"rows_last":500,"rows_between":2000,"halvings":0,"cell_chars":16384,"cell_head_chars":4096},"cells_cut":0,"cells_raw":0,"read":"whole","date_system":"1900"}

{"sheet":"Ž","index":0,"n_rows":44,"n_cols":26,"rows_kept":44,"cut":false,"hidden":false,"merged":[]}
["Průběžné pořadí ČP mládeže a žen 2019"]
[]
["ŽENY"]
[null,"2019-09-09","17:57:24","Last RECALCULATION"]
[]
["Pořadí","UCI ID","Jméno a příjmení","Oddíl","Body CLK","Body TOP","Soběslav krit","Kyjov Krit.","Olomouc","Plzeň krit.","Ostrava krit","Jablonec n. N.","Terezín","Zbraslav Sil.","Kyjov Sil.","Olomouc","Kroměžíž","Plzeň","Bílovec","Nový Jičín","Ostrava","Jablonec n. N.","Židovice","MČR ČJ","MČR ČD","MČR "]
[1,"10004738937","MACHAČOVÁ, Jarmila","TEAM DUKLA PRAHA",{"$f":"SUM(G7:AK7)","v":704},704,30,50,null,null,50,0,null,60,100,null,100,null,null,null,100,0,null,84,40,90]
[2,"10009748278","BAJGEROVÁ, Nikola","TEAM DUKLA  PRAHA",554,554,50,27,50,null,18,0,null,null,55,100,null,null,null,null,36,0,null,68,40,110]
[3,"10023478327","JANŮ, Kamila","ČEZ Cyklo Team Tábor",466,466,18,30,27,null,null,30,null,51,51,55,51,null,null,null,null,55,null,null,28,70]
[4,"10015335377","HÁJKOVÁ, Markéta","Servetto Piumate Beltrami TSA",453,453,24,24,null,null,27,0,null,55,48,60,55,null,null,100,60,0]
[5,"10064869035","DÝROVÁ MACHÁČKOVÁ, Šárka","SportRaces Isaac Team",487,450,null,null,18,30,22,0,null,40,37,40,40,55,null,60,51,51,null,null,null,43]
[6,1000181849,"NEUMANOVÁ, Tereza","TEAM DUKLA PRAHA",447,447,null,37,null,null,null,0,null,null,60,null,75,null,null,null,75,0,null,null,50,150]
[7,"10002516627","HAVLÍKOVÁ, Pavla","KC KOOPERATIVA Jablonec nad Nisou, z.s.",427,427,null,null,37,null,null,0,null,75,null,75,60,100,null,null,null,0,null,null,null,80]
[8,"10016041962","ČUNDERLOVÁ, Daniela","MAPEI MERIDA KAŇKOVSKÝ",418,418,null,null,50,27,20,0,null,null,null,38,33,48,55,45,38,0,null,23,null,41]
[9,10023478226,"VANÍČKOVÁ, Tereza","IVAR CS - AUTHOR TEAM",413,413,22,null,30,50,null,24,null,null,null,51,null,75,null,null,null,60,null,26,null,75]
[10,10009122933,"MUDŘÍKOVÁ, Kateřina","ACK Stará Ves nad Ondřejnicí",412,412,null,20,null,null,24,0,null,null,36,null,null,null,100,75,42,0,null,60,null,55]
[11,10014825018,"VORÁČOVÁ, Naďa","TUFO PARDUS Prostějov z.s.",402,402,16,17,21,null,21,27,null,null,40,45,42,null,51,40,37,45]
[12,"10013443069","VAN NECK, Melissa","BEPINK",374,374,27,22,null,null,null,0,null,100,75,null,48,null,null,null,null,0,null,47,null,55]
[13,"10015208267","KORVASOVÁ, Tereza","TEAM DUKLA PRAHA",373,373,17,null,19,null,null,0,null,null,null,42,38,null,null,null,55,0,null,110,50,42]
[14,"10060809179","ZADÁKOVÁ, Klára","SportRaces Isaac Team",363,363,null,null,null,null,null,0,null,48,34,null,35,60,48,42,null,42,null,54]
[15,10010944008,"UNGERMANOVÁ, Elizabeth","TJ AŠ Ml. Boleslav",319,319,null,16,24,null,null,22,null,null,null,48,45,null,null,null,null,75,null,44,null,45]
[16,"10006602246","HOCHMANN, Lucie","TEAM DUKLA PRAHA",295,295,37,null,null,null,37,0,null,38,null,null,null,null,null,null,35,0,null,50,33,65]
[17,10015426519,"ŠVILHÁKOVÁ, Tereza","KC KOOPERATIVA Jablonec nad Nisou, z.s.",234,234,19,null,22,null,null,37,null,null,45,35,null,null,null,null,null,48,null,null,28]
[18,"10047762174","HEŘMANOVSKÁ, Hana","SaF Zéisseng / ASC - Immo Losch",218,218,20,21,null,null,null,0,null,42,null,null,37,null,null,null,null,0,null,38,null,60]
[19,"10010776680","ŠVRČKOVÁ, Barbora","BRS Technology KAKTUS BIKE RT",218,218,null,null,null,null,null,0,null,37,null,37,36,null,60,48,null,0]
[20,"10079890291","KRUTÍLKOVÁ, Petra","TEAM FORMAN CINELLI",190,190,null,null,16,null,null,0,null,null,28,34,31,null,45,36,null,0]
[21,10093071985,"RINAGLOVÁ, Anna","SportRaces Isaac Team",172,172,null,null,null,null,null,0,null,null,27,33,null,null,null,38,34,0,null,null,null,40]
[22,"10010777791","KOHOUTKOVÁ, Kateřina","TEAM DUKLA PRAHA",167,167,null,null,null,null,19,0,null,null,null,null,34,null,null,null,40,0,null,41,33]
[23,10009335121,"NOSKOVÁ, Nikola","Český Národní Team",150,150,null,null,null,null,null,50,null,null,null,null,null,null,null,null,null,100]
[24,"10015286271","CETKOVSKÁ, Ema","TEAM DUKLA PRAHA",126,126,21,18,null,null,null,0,null,45,42,null,null,null,null,null,null,0]
[25,"10058797340","PAVELKOVÁ, Klára","SUPERIOR RIDERS",94,94,null,null,null,null,null,0,null,null,null,null,null,null,null,null,48,0,null,null,null,46]
[26,10009490725,"KUČEROVÁ, Božena","kola-bbm.cz",88,88,null,null,null,37,null,0,null,null,null,null,null,51,null,null,null,0]
[27,null,"ŠEVČÍKOVÁ Petra","TEAM DUKLA PRAHA",75,75,null,null,null,null,30,0,null,null,null,null,null,null,null,null,45,0]
[28,"10093195863","VACKOVÁ, Lenka","TJ Favorit Brno",71,71,null,null,null,null,null,0,null,36,null,null,null,null,null,null,null,0,null,35]
[29,null,"SCHÄFEROVÁ, Pavlína","SK FAVORIT Bílina z.s.",45,45,null,null,null,null,null,0,null,null,null,null,null,45,null,null,null,0]
[30,"10009338151","CZECZINKAROVÁ, Jana","MITAS MERCEDES - BENZ PRAHA TREK",44,44,null,null,null,null,null,0,null,null,null,null,null,null,null,null,null,0,null,null,null,44]
[31,10091516349,"VÁCHOVÁ, Petra","Here to Win team",33,33,null,null,null,null,null,0,null,null,33,null,null,null,null,null,null,0]
[32,10093914370,"MARSCHNEROVÁ Adriana","TEAM CYKLOTRENER VARNSDORF",32,32,null,null,null,null,null,0,null,null,null,null,32,null,null,null,null,0]
[33,10014533513,"ROTTEROVÁ, Aneta","SKP DUHA LANŠKROUN",32,32,null,null,null,null,null,0,null,null,null,null,null,null,null,null,null,0,null,32]
[34,10047445411,"GIERGELOVÁ, Markéta","SKIBIKECENTRUM.CZ Team",32,32,null,null,null,null,null,0,null,null,32,null,null,null,null,null,null,0]
[35,10010778195,"TRČKOVÁ, Daniela","Restovecycling",29,29,null,null,null,null,null,0,null,null,null,null,null,null,null,null,null,0,null,29]
[36,10010167503,"KAŇKOVSKÁ, Ema","ASO DUKLA BRNO",19,19,null,19,null,null,null,0,null,null,null,null,null,null,null,null,null,0]
[37,"10010585815","DRAHOTOVÁ, Anežka","MAPEI MERIDA KAŇKOVSKÝ",0,0,null,null,null,null,null,0,null,null,null,null,null,null,null,null,null,0]
[38,"10013060830","BARTOŠOVÁ, Denisa","CYKLO TÝM HORNÍ BLUDOVICE",0,0,null,null,null,null,null,0,null,null,null,null,null,null,null,null,null,0]

{"sheet":"J","index":1,"n_rows":76,"n_cols":27,"rows_kept":76,"cut":false,"hidden":false,"merged":[]}
["Průběžné pořadí ČP mládeže a žen 2019"]
[]
["JUNIOŘI"]
["Datum 28. 5. 2019                                                                   ","2019-09-09","17:29:51","Last RECALCULATION"]
[]
["Pořadí","UCI ID","Jméno a příjmení","Oddíl","Body CLK","Body TOP","Soběslav krit","Kyjov Krit.","Olomouc","Plzeň krit.","Ostrava krit.","Jablonec n. N.","Terezín","Olomouc","Kyjov Sil.","Kroměříž","Zbraslav Sil.","Plzeň","Bílovec","Nový Jičín","Ostrava","Jablonec n. N.","Židovice","MČR ČJ","MČR ČD","MČR","Reg. Orlicka"]
[1,"10046718517","BITTNER, Pavel","MAPEI MERIDA KAŇKOVSKÝ",{"$f":"SUM(G7:AD7)","v":1331},1331,50,50,50,null,30,50,null,75,75,33,48,null,null,60,75,100,null,84,50,150,351]
[2,"10047277073","ŤOUPALÍK, Jakub","CYCLING ACADEMY TÁBOR",1103,1103,37,37,37,null,27,24,null,48,100,100,37,null,null,null,55,60,null,110,50,110,271]
[3,"10047374275","RUNT, Lukáš","SportRaces Isaac Team",732,695,24,null,21,37,21,19,null,45,null,60,75,75,55,37,48,75,null,47,28,65]
[4,"10048200189","BOUČEK, Jakub","RBB INVEST FORCE CYCLING TEAM",635,635,null,18,10,null,37,37,null,36,60,null,null,null,null,null,60,51,null,60,40,45,181]
[5,10048201203,"STOČEK, Bruno","IVAR CS - AUTHOR TEAM",585,585,null,24,19,null,11,27,null,51,55,31,null,null,null,100,51,55,null,68,33,60]
[6,"10047786628","HNÍK, Jakub","TUFO PARDUS Prostějov z.s.",563,563,27,12,11,null,null,21,null,55,48,40,42,null,100,75,100,0,null,9,null,23]
[7,"10047304456","ČEKAL, Josef","RBB INVEST FORCE CYCLING TEAM",603,556,11,16,17,17,22,19,null,42,51,null,38,55,40,36,45,36,null,38,40,80]
[8,"10047236758","HETFLEIŠ, Petr","MAPEI MERIDA KAŇKOVSKÝ",519,481,17,9,22,20,16,20,null,34,null,29,51,40,38,48,40,48,null,null,50,37]
[9,"10047256461","BREDLER, Matyáš Jiří","TJ AŠ ML.BOLESLAV",473,473,22,17,20,24,null,27,null,60,27,25,36,100,null,null,null,35,null,11,40,29]
[10,"10082074714","MIKLOVIČ, Jakub","SportRaces Isaac Team",471,448,null,null,1,21,13,0,null,32,23,34,null,42,75,55,37,40,null,29,28,41]
[11,"10065321602","KOPELENT, David","RBB INVEST FORCE CYCLING TEAM",486,446,12,14,12,30,15,16,null,29,35,null,28,37,35,40,32,45,null,26,40,40]
[12,"10059238890","ŘEHA, Filip","FORCE TEAM JESENÍK",429,429,null,null,27,null,8,0,null,100,null,37,45,null,null,42,null,0,null,50,50,70]
[13,"10047309409","KŘENEK, Adam","TJ FAVORIT BRNO",402,402,9,null,null,19,12,15,null,null,null,42,55,60,51,30,29,31,null,23,null,26]
[14,"10047373366","VOLTR, Martin","TEAM DUKLA PRAHA",399,399,null,null,null,13,7,0,null,null,null,51,100,null,42,21,33,32,null,41,28,31]
[15,"10000832665","CAMRDA, Karel","ČEZ Cyklo Team Tábor",323,323,14,21,18,null,null,22,null,35,45,48,32,null,null,null,null,42,null,null,null,46]
[16,"10081180593","FIGALLA, Michal","CYKLO TÝM HORNÍ BLUDOVICE",314,314,6,10,13,null,1,0,null,null,28,75,35,null,null,28,31,0,null,20,28,39]
[17,"10047358313","REH, Antonín","KOVO PRAHA",301,301,30,5,14,50,null,0,null,28,32,27,30,48,null,null,null,0,null,12,null,25]
[18,"10047299103","KOLAŘÍK, Lukáš","TUFO PARDUS Prostějov z.s.",269,269,15,30,null,null,null,14,null,31,30,36,29,null,null,25,23,0,null,8,null,28]
[19,10047288288,"KUČERA Jakub","EXPRES CZ - TUFO TEAM KOLÍN",268,268,null,null,null,null,null,13,null,40,null,45,null,null,null,null,35,37,null,null,null,43,55]
[20,"10047225240","DANĚK, Jakub","IVAR CS - AUTHOR TEAM",261,261,21,null,null,null,null,0,null,38,36,28,31,null,null,null,null,0,null,44,33,30]
[21,"10047330627","SMÉKAL, René","TUFO PARDUS Prostějov z.s.",245,245,null,27,30,null,24,0,null,20,null,null,null,null,null,null,null,0,null,54,null,90]
[22,"10047252118","PÁV, Tadeáš","KOVO PRAHA",224,224,16,null,6,14,null,0,null,30,42,23,20,38,null,null,null,0,null,null,null,35]
[23,"10047307991","KOMÍNEK, Luboš","TEAM DUKLA PRAHA",220,220,19,13,null,null,null,0,null,null,40,26,40,null,null,null,null,0,null,32,null,50]
[24,"10047449855","HORULKO, Vladyslav","TJ AŠ ML.BOLESLAV",214,214,7,6,7,16,null,10,null,37,29,38,26,null,null,null,null,38]
[25,"10048203930","MÜLLER, Maxim","TUFO PARDUS Prostějov z.s.",207,207,8,null,4,null,4,12,null,33,null,32,60,null,null,22,null,0,null,10,null,22]
[26,"10047272023","SWACZYNA, Tomáš","CK FESO PETŘVALD",204,204,null,11,8,null,18,0,null,24,null,22,21,null,37,null,25,0,null,null,null,38]
[27,"10047309510","KADLEC, Vojtěch","TJ FAVORIT BRNO",186,186,18,null,null,null,null,0,null,null,26,30,33,null,48,31,null,0]
[28,"10047218873","LIŠKA, Marek","Roman Kreuziger Cycling Academy",183,183,null,null,24,null,6,9,null,19,33,null,null,null,null,null,null,0,null,17,null,75]
[29,"10046331224","JANOŠ, Matyáš","TEAM DUKLA PRAHA",172,172,null,null,null,null,null,0,null,null,null,55,27,null,null,null,null,0,null,35,null,55]
[30,"10047448744","ČÍŽEK, Vojtěch","TJ STADION LOUNY",172,172,null,null,9,12,null,8,null,25,null,24,24,null,null,null,null,33,null,4,null,33]
[31,"10092343879","KUČERA, Vojtěch","CK FESO PETŘVALD",159,159,null,null,null,null,1,0,null,26,null,null,null,null,45,19,34,0,null,null,null,34]
[32,"10047398123","VOLF, Martin","Roman Kreuziger Cycling Academy",158,158,null,null,2,null,10,0,null,27,31,null,23,null,null,26,null,0,null,7,null,32]
[33,"10046341530","MACÁN, Karel","Roman Kreuziger Cycling Academy",{"$f":"SUM(G39:AD39)","v":145},145,20,20,null,null,9,0,null,18,null,null,34,null,null,null,null,0,null,null,null,44]
[34,10047227462,"ŽVAK, Daniel","EXPRES CZ - TUFO TEAM KOLÍN",132,132,null,null,null,null,20,30,null,null,null,null,null,null,null,23,38,0,null,null,null,21]
[35,10047319614,"HALBICH, Tomáš","PROFI SPORT CHEB",125,125,null,null,null,null,17,0,null,null,null,null,null,null,null,20,36,34,null,null,null,18]
[36,"10046635964","HURÁČ, Vojtěch","CK FESO PETŘVALD",119,119,null,null,3,null,19,0,null,17,null,21,null,null,null,29,30,0]
[37,"10047315166","ZÁTOPEK, Jan","TJ SGMA HRANICE, z.s.",104,104,null,null,null,null,14,0,null,21,null,null,null,null,null,null,28,0,null,5,null,36]
[38,10047403173,"HORÁK, Dominik","Jaroslav Kulhavý Cycling Team",100,100,null,22,null,null,null,0,null,null,null,null,null,51,null,null,null,0,null,null,null,27]
[39,"10047914950","JEŽEK, Tomáš","IVAR CS - AUTHOR TEAM",96,96,13,null,null,null,5,0,null,null,null,null,25,null,null,27,26,0]
[40,"10047209476","VITNER, David","Roman Kreuziger Cycling Academy",91,91,10,null,16,15,null,0,null,13,null,null,null,null,null,null,null,0,null,13,null,24]
[41,"10047371245","HRDLIČKA, Aleš","MAPEI MERIDA KAŇKOVSKÝ",80,80,null,null,null,null,null,0,null,11,37,null,null,null,null,32,null,0]
[42,null,"RADEK, Patrik","ON - OFF TEAM",77,77,null,null,null,null,null,0,null,null,null,null,null,null,null,35,42,0]
[43,10047920711,"HLADÍK, Josef","IVAR CS - AUTHOR TEAM",75,75,null,null,null,null,null,0,null,null,null,null,null,null,null,null,null,0,null,null,33,42]
[44,10047213823,"ŠULC, David","IVAR CS - AUTHOR TEAM",73,73,null,null,null,null,null,0,null,null,null,null,null,null,null,null,null,0,null,null,33,null,40]
[45,"10047262424","PAPÍK, Václav","KOVO PRAHA",72,72,null,null,15,27,null,0,null,10,null,20,null,null,null,null,null,0]
[46,"","ČECH, Jan","HEAD PRO TEAM OPAVA",62,62,null,null,null,null,2,0,null,15,null,null,null,null,null,18,27,0]
[47,"10092892941","MORONG, Kryštof","TEAM FORMAN CINELLI",60,60,null,null,null,null,1,0,null,null,null,18,null,null,null,17,24,0]
[48,"10048179880","HOFMEISTER, Adam","Roman Kreuziger Cycling Academy",58,58,null,null,null,18,null,0,null,14,null,null,null,null,null,null,null,0,null,6,null,20]
[49,null,"KOLAŘÍK Lukáš","TUFO PARDUS Prostějov z.s.",50,50,null,null,null,null,50,0,null,null,null,null,null,null,null,null,null,0]
[50,"10047455111","RAČAN, David","ČEZ Cyklo Team Tábor",49,49,null,4,1,null,null,11,null,12,21,null,null,null,null,null,null,0]
[51,10058329013,"SÁSKA, Jan","ČS SPECIALIZED JUNIOR MTB TEAM",45,45,null,null,null,null,null,0,null,null,null,null,null,45,null,null,null,0]
[52,null,"ZATLOUKAL, Jan","NUTREND SPECIALIZED RACING",45,45,null,null,null,null,null,0,null,null,null,null,null,null,null,null,null,0,null,null,null,null,45]
[53,"10081493825","JEŘÁBEK, Ondřej","IVAR CS - AUTHOR TEAM",36,36,null,null,null,null,null,0,null,null,19,null,null,null,null,null,null,0,null,null,null,17]
[54,null,"ŘEHÁK, Martin","TUFO PARDUS Prostějov z.s.",28,28,null,null,null,10,3,0,null,null,null,null,null,null,null,null,null,0,null,null,null,15]
[55,"10093334491","KŘIVANEC, Karel","Bike Freaks Holice",23,23,null,null,null,null,null,0,null,23,null,null,null,null,null,null,null,0]
[56,null,"MALÍK Matyáš","BIKE 2000",23,23,null,null,null,null,1,0,null,null,null,null,null,null,null,null,22,0]
[57,"10085678868","LEDECKÝ, Filip","ČEZ Cyklo Team Tábor",22,22,null,null,null,null,null,0,null,null,null,null,22,null,null,null,null,0]
[58,null,"VINKLÁREK, František","4EVER CYKLOBULIS BYSTŘICE p.H.",22,22,null,null,null,null,null,0,null,22,null,null,null,null,null,null,null,0]
[59,10058808454,"ŠUBRT, Jan","AXON SPORT TEAM",22,22,null,null,null,22,null,0,null,null,null,null,null,null,null,null,null,0]
[60,"10083489500","HOLUB, Jakub","TJ PLAMEN CHODOV, z.s.",20,20,null,null,null,null,null,0,null,null,20,null,null,null,null,null,null,0]
[61,10012585631,"DANĚK Filip","MS BIKE ACADEMY RACING",20,20,null,null,1,null,null,0,null,null,null,19,null,null,null,null,null,0]
[62,"10047444805","STIBAL, Adam","CYCLING ACADEMY TÁBOR",19,19,null,null,null,null,null,0,null,null,null,null,19,null,null,null,null,0]
[63,null,"GORNER, Dominik","TJ FAVORIT BRNO",19,19,null,null,null,null,null,0,null,null,null,null,null,null,null,null,null,0,null,null,null,19]
[64,10047418432,"CHRZ, Petr","AUTHOR TEAm STUPNO",18,18,null,null,null,null,null,0,null,null,18,null,null,null,null,null,null,0]
[65,10077349905,"PRCHLÍK, Kryštof","KC KOOPERATIVA Jablonec nad Nisou, z.s.",{"$f":"SUM(G71:AD71)","v":18},18,null,null,null,11,null,7,null,null,null,null,null,null,null,null,null,0]
[66,"10081601737","PLEŠINEC, Roman","SK PETŘÍN PLZEŇ",16,16,null,null,null,null,null,0,null,16,null,null,null,null,null,null,null,0]
[67,10047324462,"VÁVRA, Erik","ACK Stará Ves nad Ondřejnicí",15,15,null,15,null,null,null,0,null,null,null,null,null,null,null,null,null,0]
[68,null,"ŠTĚPÁN, Ferdinand","TEAM FORMAN CINELLI",15,15,null,null,null,null,null,0,null,null,null,null,null,null,null,15,null,0]
[69,null,"ŠINDELÁŘ, Jan","HEAD PRO TEAM OPAVA",14,14,null,null,null,null,null,0,null,null,null,null,null,null,null,null,null,0,null,14]
[70,"10047307082","TOUL, Daniel","KOVO PRAHA",14,14,null,null,5,9,null,0,null,null,null,null,null,null,null,null,null,0]

{"sheet":"Jky","index":2,"n_rows":29,"n_cols":26,"rows_kept":29,"cut":false,"hidden":false,"merged":[]}
["Průběžné pořadí ČP mládeže a žen 2019"]
[]
["JUNIORKY"]
["Datum 28. 5. 2019                                                                   ","2019-09-09","19:43:24","Last RECALCULATION"]
[]
["Pořadí","UCI ID","Jméno a příjmení","Oddíl","Body CLK","Body TOP","Soběslav krit","Kyjov Krit.","Olomouc","Plzeň Krit","Ostrava krit.","Jablonec n. N.","Terezín","Zbraslav Sil.","Kyjov Sil.","Olomouc","Kroměříž","Plzeň","Bílovec","Nový Jičín","Ostrava","Jablonec n. N.","Židovice","MČR ČJ","MČR ČD","MČR"]
[1,"10047392766","LOCHMANOVÁ, Aneta","MG Bike Team",{"$f":"SUM(G7:AK7)","v":914},821,null,null,18,30,30,50,null,48,60,45,51,100,100,100,100,60,null,47,null,75]
[2,"10047281622","HARTYCHOVÁ, Nicole","MITAS MERCEDES -  BENZ PRAHA TREK",916,791,30,22,30,50,50,37,null,60,55,55,75,55,48,60,60,55,null,84,null,90]
[3,"10047208365","BURLOVÁ, Kristýna","TEAM DUKLA PRAHA",650,650,50,50,50,null,null,0,null,100,100,100,100,null,null,null,null,100]
[4,"10047371144","NAVRKALOVÁ, Michaela","KC KOOPERATIVA Jablonec nad Nisou, z.s.",624,624,null,null,24,null,37,24,null,null,48,51,55,null,60,55,75,51,null,41,33,70]
[5,"10092874046","SVOBODOVÁ, Gabriela","TJ FAVORIT BRNO",682,598,null,null,20,37,27,22,null,51,45,60,42,75,75,51,55,42,null,35,null,45]
[6,10047786325,"OBOŘILOVÁ Tereza","DRAHANSKÝ SPORT TEAM",575,575,null,null,null,null,null,30,null,null,null,75,60,null,null,75,null,75,null,60,50,150]
[7,"10047254845","DŽERENGOVÁ, Sabina","TEAM DUKLA PRAHA",433,433,null,24,22,27,null,0,null,null,51,null,null,60,null,null,null,45,null,54,40,110]
[8,"10047256764","JANDOVÁ, Veronika","TJ FAVORIT BRNO",425,425,null,35,null,null,null,0,null,75,75,null,null,null,null,null,null,0,null,110,50,80]
[9,"10087884408","VAN NECK, Alysha","TEAM DUKLA PRAHA",304,304,37,27,27,null,null,0,null,45,null,null,null,null,null,null,null,0,null,68,40,60]
[10,"10047329718","KLÍMOVÁ, Natálie","IVAR CS - AUTHOR TEAM",273,273,null,null,37,null,null,21,null,42,null,null,48,null,null,null,null,48,null,44,33]
[11,"10065348072","KACALKOVÁ, Vendula","SKP DUHA Lanškroun",226,226,null,null,19,null,22,0,null,null,42,null,null,null,55,null,null,0,null,38,null,50]
[12,"10092980544","KRAVÁKOVÁ, Gabriela","MG Bike Team",223,223,null,null,16,22,null,20,null,null,null,null,null,null,45,48,null,40,null,32]
[13,10048205243,"BOJKOVÁ Michaela","BIKE 2000",171,171,null,null,null,null,24,0,null,null,null,null,45,null,51,null,51,0]
[14,"10047338509","MEDKOVÁ, Veronika","SportRaces Isaac Team",147,147,null,null,17,24,null,0,null,null,null,null,null,51,null,null,null,0,null,null,null,55]
[15,"10047409944","SOUČKOVÁ, Anna","KOVO PRAHA",120,120,null,null,null,null,null,0,null,55,null,null,null,null,null,null,null,0,null,null,null,65]
[16,10097269358,"STRNADOVÁ, Alexandra","CK Příbram - Fany GASTRO",57,57,null,null,null,null,null,19,null,null,null,null,null,null,null,null,null,38]
[17,10047781978,"VERNEROVÁ, Klára","IVAR CS - AUTHOR TEAM",56,56,null,37,null,null,null,19,null,null,null,null,null,null,null,null,null,0]
[18,"10090732366","NOVÁČKOVÁ, Barbora","TJ STADION LOUNY",52,52,null,null,15,null,null,0,null,null,null,null,null,null,null,null,null,37]
[19,10047372861,"VAKULOVÁ, Jitka","Elkov Autrhor Junior Team",50,50,null,null,null,null,null,0,null,null,null,null,null,null,null,null,null,0,null,50]
[20,"10047347296","DUBSKÁ, Kateřina","HEAD PRO TEAM OPAVA",46,46,null,null,null,null,null,0,null,null,null,null,null,null,null,null,null,0,null,null,null,46]
[21,"10092873945","FILIPOVÁ, Eva","TJ FAVORIT BRNO",40,40,null,null,null,null,null,0,null,null,40,null,null,null,null,null,null,0]
[22,10047324159,"ŠTEFANOVÁ, Kateřina","Jaroslav Kulhavy Cycling Team",27,27,null,null,null,null,null,27,null,null,null,null,null,null,null,null,null,0]
[23,"10047344973","PLCHOVÁ, Pavlína","FORCE TEAM JESENÍK",0,0,null,null,null,null,null,0,null,null,null,null,null,null,null,null,null,0]

{"sheet":"K","index":3,"n_rows":121,"n_cols":27,"rows_kept":121,"cut":false,"hidden":false,"merged":[]}
["Průběžné pořadí ČP mládeže a žen 2019"]
[]
["KADETI"]
["Datum 6. 7. 2019                                                                   ","2019-09-09","19:46:39","Last RECALCULATION"]
[]
["Pořadí","UCI ID","Jméno a příjmení","Oddíl","Body CLK","Body TOP","Soběslav krit","Kyjov Krit.","Olomouc","Plzeň Krit","Ostrava krit.","Jablonec n. N.","Terezín","Olomouc","Kyjov Sil.","Kroměříž","Zbraslav Sil.","Plzeň","Bílovec","Nový Jičín","Ostrava","Jablonec n. N.","Židovice","MČR ČJ","MČR ČD","MČR","Jevíčko"]
[1,"10047201392","TELECKÝ, Štěpán","TJ FAVORIT BRNO",{"$f":"SUM(G7:AL7)","v":785},768,18,20,27,3,null,50,null,48,55,17,32,33,48,33,null,100,null,110,40,40,111]
[2,"10018791712","MRÁZ, Daniel","MAPEI MERIDA KAŇKOVSKÝ",854,762,50,24,50,37,30,24,null,30,100,51,38,51,60,48,48,55,null,35,33,90]
[3,"10047287783","JELÍNEK, Marek","CYKLO MIKULÁŠEK ZNOJMO o.s.",786,750,21,21,15,50,null,20,null,38,36,48,40,55,100,100,null,75,null,17,40,110]
[4,"10056008184","SEEMAN, Adam","TJ STADION LOUNY",666,666,20,3,19,14,null,27,null,25,75,75,45,48,null,null,null,48,null,68,50,50,99]
[5,"10047292635","VALL, Jan","MAPEI MERIDA KAŇKOVSKÝ",665,644,17,1,13,12,37,12,null,null,33,34,55,35,75,60,100,20,null,0,4,55,102]
[6,"10047292130","OBDRŽÁLEK, Tomáš","MAPEI MERIDA KAŇKOVSKÝ",654,626,null,17,9,18,24,19,null,51,null,28,42,36,51,38,75,37,null,26,33,150]
[7,"10059931735","ŠIROKÝ, Štěpán","TJ FAVORIT BRNO",611,582,37,22,18,24,null,37,null,29,29,42,51,34,29,35,null,60,null,44,40,80]
[8,"10047235647","ČEPEK, Martin","DUKLA  PRAHA",587,573,24,50,17,22,15,0,null,28,32,30,100,32,20,7,7,27,null,54,28,39,55]
[9,"10047400547","KOBLÍŽEK, Matyáš","TUFO PARDUS Prostějov z.s.",489,489,30,11,37,30,null,8,null,42,null,100,19,42,null,null,null,51,null,38,16,65]
[10,"10048001139","VÁVRA, Petr","DUKLA  PRAHA",508,462,22,19,16,8,18,27,null,16,31,27,48,75,37,23,42,22,null,6,28,43]
[11,"10047224937","STRÁNSKÝ, Matěj","IVAR CS - AUTHOR TEAM",453,453,27,27,30,null,null,14,null,45,40,32,34,null,null,null,null,26,null,23,20,75,60]
[12,"10047348108","STŘÍŽ, Matyáš","LOKO CAMPAGNOLO KRNOV",451,435,null,null,12,null,21,21,null,23,16,40,22,null,42,55,55,40,null,60,0,44]
[13,"10047394382","OTTA, Josef","RBB INVEST FORCE CYCLING TEAM",389,389,14,10,null,4,17,13,null,32,45,null,26,28,null,34,45,36,null,32,24,29]
[14,"10047212712","KAŇKOVSKÝ, Adam","MAPEI MERIDA KAŇKOVSKÝ",388,388,11,null,null,27,50,0,null,null,null,55,null,45,16,20,38,28,null,5,33,60]
[15,"10092747542","FIALA, Matyáš","ČEZ Cyklo Team Tábor",372,372,null,null,24,null,null,22,null,75,null,60,null,null,null,null,null,34,null,84,50,23]
[16,"10055481556","HAVRLANT, Jakub","MAPEI MERIDA KAŇKOVSKÝ",425,371,7,null,2,11,6,4,null,55,37,36,36,30,55,32,60,24,null,5,4,21]
[17,"10047286672","DOSTÁL, Václav","LYKO KLUB PRACHATICE z.s.",351,351,null,null,14,null,null,15,null,37,34,33,24,27,null,null,null,42,null,5,50,70]
[18,"10047431263","KADLEC, Milan","DUKLA  PRAHA",371,350,13,9,null,13,12,30,null,6,28,18,35,17,23,15,33,45,null,5,28,41]
[19,"10047357808","HÁK, Jakub","Jaroslav Kulhavy Cycling Team",414,348,null,14,null,null,20,0,null,35,38,31,37,60,36,47,51,35,null,0,0,10]
[20,"10046370125","JINDŘICH, Pavel","TJ STADION LOUNY",335,335,null,16,3,17,null,19,null,null,51,45,21,13,null,null,null,31,null,41,50,28]
[21,"10082677326","BORKOVEC, Matyáš","KOVO PRAHA",328,328,12,null,10,16,null,0,null,27,14,37,28,40,null,45,null,38,null,13,12,36]
[22,"10047248377","ČERVÍČEK, David","DUKLA  PRAHA",302,286,16,7,1,1,7,10,null,20,20,29,33,15,null,31,21,18,null,0,28,45]
[23,"10047263434","VONDRÁČEK, Jan","RBB INVEST FORCE CYCLING TEAM",279,277,19,2,7,5,16,9,null,33,22,null,75,4,null,30,25,32,null,0,0]
[24,"10047443084","VEVERKA, Václav","KC KOOPERATIVA Jablonec nad Nisou, z.s.",259,259,null,null,null,1,1,11,null,21,7,21,30,26,null,null,15,29,null,47,20,30]
[25,"10047448845","VANÍČEK, Šimon","SPORTCOMPLEX BŘECLAV",257,245,8,null,null,null,2,0,null,24,25,null,31,21,31,27,37,12,null,0,8,31]
[26,"10047362050","KOVAŘČÍK, Petr","TUFO PARDUS Prostějov z.s.",241,241,null,12,null,19,27,0,null,31,null,null,3,37,32,null,32,0,null,8,16,24]
[27,"10086057875","NOVÁK, Pavel","RBB INVEST FORCE CYCLING TEAM",224,224,null,1,null,7,5,16,null,22,21,null,20,3,null,null,27,17,null,29,24,32]
[28,"10047319917","DUBČÁK, Pavel","4EVER CYKLOBULIS BYSTŘICE p.H.",210,210,null,null,null,null,null,0,null,36,23,24,null,null,45,36,null,0,null,0,0,46]
[29,"10047415196","PŘIDAL, Tomáš","MAPEI MERIDA KAŇKOVSKÝ",207,206,6,null,null,null,9,3,null,18,24,26,15,null,34,1,28,21,null,0,4,18]
[30,"10047763689","DOLEŽAL, Tomáš","IVAR CS - AUTHOR TEAM",203,203,null,null,1,null,null,2,null,40,42,23,29,null,null,null,null,33,null,0,20,13]
[31,"10092869905","KRUPKA, Štěpán","Carla.kupkolo.cz",200,200,null,null,null,null,14,1,null,null,1,null,23,31,19,42,31,15,null,11,12]
[32,"10047443589","ŠTEC, Radovan","TUFO PARDUS Prostějov z.s.",183,183,null,15,11,null,null,0,null,17,6,35,60,null,null,null,9,0,null,14,16]
[33,"10056004346","SPORYSCH, Daniel","EXPRES CZ - TUFO  TEAM KOLÍN",{"$f":"SUM(G39:AL39)","v":181},181,null,13,null,null,null,0,null,null,48,null,27,19,null,null,null,0,null,0,0,19,55]
[34,"10047261616","MÜLLER, Mirek","MAPEI MERIDA KAŇKOVSKÝ",170,170,15,null,null,10,19,0,null,14,null,null,14,1,18,3,35,0,null,0,4,37]
[35,"10046677087","CÍRKVA, Vojtěch","Roman Kreuziger Cycling Academy",137,137,null,null,null,15,null,0,null,1,11,null,null,38,null,null,16,30,null,0,0,26]
[36,"10047266969","KRULA, Štěpán","MS BIKE ACADEMY RACING",133,133,null,null,null,21,null,0,null,null,null,22,25,23,null,null,null,0,null,0,0,42]
[37,"10047281319","STANĚK, Jakub","Roman Kreuziger Cycling Academy",131,131,10,null,null,1,4,1,null,1,null,null,null,20,null,16,26,14,null,0,0,38]
[38,"10047249589","SOLAŘ, Albert","MAPEI MERIDA KAŇKOVSKÝ",119,119,2,null,null,null,null,0,null,null,5,14,16,null,24,null,null,0,null,9,33,16]
[39,"10047310015","VAJBAR, Jakub","SPORTCOMPLEX BŘECLAV",118,118,null,null,null,20,10,0,null,null,null,1,null,5,22,9,8,0,null,0,8,35]
[40,"10005541613","VYSOČAN, Daniel","TJ FAVORIT BRNO",109,109,1,null,null,null,null,6,null,null,3,null,10,24,30,24,null,11,null,0,0]
[41,10084713013,"Adam KUBÍK","CYCLING ACADEMY TÁBOR",106,106,null,null,5,null,null,0,null,34,null,9,null,null,null,null,null,0,null,0,24,34]
[42,10047353562,"HUSIČKA, Radim","TJ Sigma Hranice z.s.",104,104,null,null,null,null,1,0,null,null,1,null,null,null,40,29,23,0,null,0,0,10]
[43,"10004976989","DOHNAL, Filip","KOVO PRAHA",102,102,9,null,null,null,1,0,null,null,null,15,null,null,null,25,40,0,null,0,12]
[44,10085678464,"ŠIGUT, David","ACK Stará Ves nad Ondřejnicí",94,94,null,null,null,null,null,0,null,null,null,null,null,null,33,28,22,0,null,0,0,11]
[45,"10058654264","HYTYCH, Matěj","TJ FAVORIT BRNO",93,93,null,null,null,null,11,1,null,19,null,16,9,1,null,null,12,4,null,0,8,12]
[46,"10064363524","KYJONKA, Štěpán","CK FESO PETŘVALD",91,91,null,null,null,null,3,0,null,null,null,5,5,null,25,null,36,0,null,0,0,17]
[47,"10047376905","VYKYDAL, Jaroslav","TJ AŠ ML.BOLESLAV",90,90,5,null,null,null,null,0,null,11,null,6,null,14,null,null,null,0,null,10,24,20]
[48,"10053331085","ŠVEJDAR, Marek","TJ PLAMEN CHODOV, z.s.",82,82,null,null,null,null,null,0,null,8,null,20,null,12,null,12,30,0,null,0,0]
[49,10047985476,"VOŽENÍLEK, Martin","HEAD PRO Team",80,80,null,null,null,null,null,0,null,null,30,null,null,null,null,null,null,0,null,50,0]
[50,"10047423179","RUBÁŠ, Matouš","AC SPARTA PRAHA",79,79,null,18,null,9,null,5,null,null,null,null,6,18,null,null,null,23,null,0,0]
[51,"10047440862","JANÍČEK, Jakub","TJ FAVORIT BRNO",78,78,null,null,null,null,null,0,null,9,null,null,null,9,27,1,24,8,null,0,0]
[52,10047335778,"MAJDANICS, Marek","ACK Stará Ves nad Ondřejnicí",76,76,null,1,null,null,null,0,null,null,12,null,null,null,35,8,null,0,null,20,0]
[53,"10089720132","CHOMA, Eduard","MG Bike Team",75,75,null,null,null,null,null,0,null,null,null,null,1,null,21,19,34,0,null,0,0]
[54,"10085014521","DRÁPELA, Matěj","MAPEI MERIDA KAŇKOVSKÝ",73,73,null,null,null,null,null,0,null,null,null,null,null,11,12,5,29,16,null,0,0]
[55,"10002585537","SYRKO, Adam","ACK Stará Ves nad Ondřejnicí",71,71,null,null,null,null,8,0,null,null,null,null,null,null,15,10,13,0,null,0,0,25]
[56,"10047168454","POKORNÝ, Ondřej","TUFO PARDUS Prostějov z.s.",67,67,1,null,null,null,null,0,null,15,null,7,null,null,null,18,17,9,null,0,0]
[57,"10047329314","PADĚLEK, Viktor","TJ FAVORIT BRNO",65,65,3,null,null,null,null,0,null,null,4,4,null,2,38,1,null,1,null,12,0]
[58,"10047853922","LUKEŠ, Jan","Carla.kupkolo.cz",62,62,4,null,null,null,null,0,null,1,10,null,null,8,null,null,null,5,null,7,12,15]
[59,"10014238671","VENC, Adam","GT Opportunity Brno",61,61,null,8,null,null,null,0,null,null,8,null,18,null,null,null,null,0,null,0,0,27]
[60,"10047444195","ZOAITTER, René","PROFI SPORT CHEB",60,60,1,null,null,6,null,0,null,null,null,null,12,22,null,null,null,19,null,0,0]
[61,"10093181921","PROCHÁZKA, Stanislav","SK BIKETIME BULLS PÍSEK",58,58,null,null,null,null,22,0,null,null,null,null,null,16,null,null,20,0,null,0,0]
[62,10082747953,"HOLEC Timon","TJ FAVORIT BRNO",49,49,null,null,null,null,null,0,null,null,null,null,null,10,28,null,null,3,null,0,8]
[63,"10047423785","PÁVEK, Matyáš","KC KOOPERATIVA Jablonec nad Nisou, z.s.",47,47,null,null,null,null,null,0,null,3,null,19,null,25,null,null,null,0,null,0,0]
[64,"10092930024","PETŘÍK, Jakub","SKP DUHA Lanškroun",47,47,1,null,null,null,null,0,null,null,null,12,7,null,26,null,null,1,null,0,0]
[65,"10047375083","JECH, Filip","ADASTRA Cycling Team",{"$f":"SUM(G71:AL71)","v":36},36,null,null,null,null,null,0,null,2,17,null,17,null,null,null,null,0,null,0,0]
[66,"10047337600","ČÁSLAVSKÝ, Matěj","MS BIKE ACADEMY RACING",35,35,null,null,null,1,null,0,null,null,19,8,1,6,null,null,null,0,null,0,0]
[67,"10047363464","VOLF, Pavel","CK MTB Maraton Hlinsko",35,35,null,null,null,null,null,7,null,null,null,null,null,null,null,null,null,6,null,0,0,22]
[68,10047364979,"KULHA, Filip","ŠKC Dubnica n/Váhom",33,33,null,null,null,null,null,0,null,null,null,null,null,null,null,null,null,0,null,null,null,33]
[69,"10047289201","ŠKUREK, Kryštof","LOKO CAMPAGNOLO KRNOV",32,32,null,null,null,null,1,0,null,null,null,null,null,null,null,13,18,0,null,0,0]
[70,"10047264444","KERL, Maximilian","AUTHOR TEAM STUPNO",28,28,null,1,4,2,null,0,null,10,null,null,4,7,null,null,null,0,null,0,0]
[71,"10011516409","TERŠL, Robin","CYKLOSPORT-PITSTOP.CZ",26,26,null,null,null,null,null,1,null,null,null,null,null,null,null,null,null,25,null,0,0]
[72,10047269595,"Karel BRUDNÝ","BIKE 2000",25,25,null,null,null,null,null,0,null,null,null,1,null,null,10,null,14,0,null,0,0]
[73,10047036492,"MORÁVEK, Michal","TJ FAVORIT BRNO",25,25,null,null,null,null,null,0,null,null,null,null,null,null,13,null,11,1]
[74,"10084848106","POŘÍZKA, Jan","KOVO PRAHA",24,24,null,null,1,null,null,0,null,null,null,null,13,null,null,null,null,10,null,0,0]
[75,10003176328,"Ondřej POLÁŠEK","BIKE 2000",22,22,null,null,null,null,null,0,null,null,null,1,null,null,11,null,10,0,null,0,0]
[76,"10046607874","SVOBODA, Pavel","Vokolek_Cycling_Team",21,21,null,null,null,null,null,0,null,null,null,null,2,null,null,2,null,7,null,0,0,10]
[77,"10058655779","ŽBÁNEK, Radim","TJ FAVORIT BRNO",19,19,null,null,null,null,null,0,null,null,null,11,8,null,null,null,null,0,null,0,0]
[78,10063323604,"KONEČNÝ Filip","Bike Team Nové Městona Motavě",18,18,null,null,null,null,null,0,null,null,18,null,null,null,null,null,null,0,null,0,0]
[79,"10092711166","OSWALD, Jan","KC KOOPERATIVA Jablonec nad Nisou, z.s.",16,16,null,null,null,null,null,0,null,null,null,2,1,null,null,null,null,13,null,0,0]
[80,"10080408233","ZÁBRODSKÝ, Filip","LOKO CAMPAGNOLO KRNOV",15,15,null,null,null,null,null,0,null,null,null,1,null,null,14,null,null,0,null,0,0]
[81,"10047347906","FRÜHAUF, Jan","CYKLOSPORT-PITSTOP.CZ",14,14,null,null,null,null,null,0,null,null,null,null,null,null,null,null,null,0,null,0,0,14]
[82,10047318604,"TITĚRA Tomáš ","KOVO PRAHA",14,14,null,null,null,null,null,0,null,null,null,10,null,null,null,4,null,0,null,0,0]
[83,10093081887,"ŠIDLÍK Karel","BIKE PRO RACING",13,13,null,null,null,null,null,0,null,null,null,13,null,null,null,null,null,0,null,0,0]
[84,null,"VAKOČ, Martin","SK VELO PRAHA",13,13,null,null,null,null,13,0,null,null,null,null,null,null,null,null,null,0,null,0,0]
[85,"10093020758","KNOBLOCH, Florian","TJ AŠ ML.BOLESLAV",11,11,null,null,null,null,null,0,null,null,null,null,11,null,null,null,null,0,null,0,0]
[86,"10047415095","ZAJÍČEK, Ondřej","TJ Uničov",10,10,null,null,null,null,null,0,null,null,null,null,null,null,null,null,null,0,null,0,0,10]
[87,"10047134708","LAMAČ, Martin","KOVO PRAHA",6,6,null,null,null,null,null,0,null,null,null,null,null,null,null,6,null,0,null,0,0]
[88,"10047319109","FOIST, Štěpán","KOVO PRAHA",6,6,null,null,null,null,null,0,null,null,null,null,null,null,null,null,6,0,null,0,0]
[89,"10003021936","VRÁNA, David","Dakom Pharma Kyjov",5,5,null,null,null,null,null,0,null,null,null,null,null,null,null,null,5,0,null,0,0]
[90,"10047318705","VIK, Matěj","DUKLA  PRAHA",5,5,null,null,null,null,null,0,null,4,null,null,null,null,null,null,null,1,null,0,0]
[91,10047369124,"Antonín HONSA","ČS Specialized Junior MTB team",4,4,null,null,null,null,null,0,null,null,null,3,null,1,null,null,null,0,null,0,0]
[92,"10046409430","MAZEL, Ondřej","TUFO PARDUS Prostějov z.s.",4,4,null,null,null,null,null,0,null,null,null,null,null,null,null,null,4,0,null,0,0]
[93,"10047439347","ŠVEC, Libor","GALAXY CYKLOŠVEC STEVENS",2,2,null,null,null,null,null,0,null,null,null,null,null,null,null,null,null,2,null,0,0]
[94,10051849514,"HOLUB, Filip","GT Opportunity Brno",1,1,null,null,null,null,null,0,null,null,1,null,null,null,null,null,null,0,null,0,0]
[95,"10047779756","PAŘÍK, Vojtěch","TJ AŠ ML.BOLESLAV",1,1,null,null,null,null,null,0,null,null,null,null,1,null,null,null,null,0,null,0,0]
[96,"10041675729","VLAS, Jakub","MS BIKE ACADEMY RACING",1,1,null,null,null,null,null,0,null,null,null,null,null,1,null,null,null,0,null,0,0]
[97,"10083874870","KOŠÍK, Pavel","AC SPARTA PRAHA",{"$f":"SUM(G103:AL103)","v":0},0,null,null,null,null,null,0,null,null,null,null,null,null,null,null,null,0,null,0,0]
[98,"10047315267","FIÁLEK, David","ACS DRAK VRBNO",0,0,null,null,null,null,null,0,null,null,null,null,null,null,null,null,null,0,null,0,0]
[99,"10047409641","LHOTÁK, Václav","Bike Freaks Holice",0,0,null,null,null,null,null,0,null,null,null,null,null,null,null,null,null,0,null,0,0]
[100,"10047417826","KNÁPEK, František","Dakom Pharma Kyjov",0,0,null,null,null,null,null,0,null,null,null,null,null,null,null,null,null,0,null,0,0]
[101,"10008462727","BUKAČ, Adam","EXPRES CZ - TUFO  TEAM KOLÍN",0,0,null,null,null,null,null,0,null,null,null,null,null,null,null,null,null,0,null,0,0]
[102,"10079418429","PODZIMEK, Ondřej","G.BENEDIKT ŠVECCYKLOTEAM ŽELEČ",0,0,null,null,null,null,null,0,null,null,null,null,null,null,null,null,null,0,null,0,0]
[103,"10081599515","KUBIŠTA, Martin","Jaroslav Kulhavy Cycling Team",0,0,null,null,null,null,null,0,null,null,null,null,null,null,null,null,null,0,null,0,0]
[104,"10085962895","DAVID, Ondřej","KC KOOPERATIVA Jablonec nad Nisou, z.s.",0,0,null,null,null,null,null,0,null,null,null,null,null,null,null,null,null,0,null,0,0]
[105,"10073653595","ŠIMEČEK, Marek","LOKOMOTIVA NYMBURK",0,0,null,null,null,null,null,0,null,null,null,null,null,null,null,null,null,0,null,0,0]
[106,"10079504214","BARTH, Matěj","MS BIKE ACADEMY RACING",0,0,null,null,null,null,null,0,null,null,null,null,null,null,null,null,null,0,null,0,0]
[107,"10079408022","KREUZER, Lukáš","SK PETŘÍN PLZEŇ",0,0,null,null,null,null,null,0,null,null,null,null,null,null,null,null,null,0,null,0,0]
[108,"10047679221","ONDRIŠÍK, David","SportRaces Isaac Team",0,0,null,null,null,null,null,0,null,null,null,null,null,null,null,null,null,0,null,0,0]
[109,"10004595962","OBORNÝ, Marek","TEAM FORMAN CINELLI",0,0,null,null,null,null,null,0,null,null,null,null,null,null,null,null,null,0,null,0,0]
[110,"10047277174","ČERNÝ, Filip","TJ AŠ ML.BOLESLAV",0,0,null,null,null,null,null,0,null,null,null,null,null,null,null,null,null,0,null,0,0]
[111,"10093020657","KVÁČ, David","TJ AŠ ML.BOLESLAV",0,0,null,null,null,null,null,0,null,null,null,null,null,null,null,null,null,0,null,0,0]
[112,"10001558145","BAUER, Tomáš","TJ FAVORIT BRNO",0,0,null,null,null,null,null,0,null,null,null,null,null,null,null,null,null,0,null,0,0]
[113,"10007607107","MALÁŠEK, Jakub","TJ FAVORIT BRNO",0,0,null,null,null,null,null,0,null,null,null,null,null,null,null,null,null,0,null,0,0]
[114,"10047323048","POKORNÝ, Matouš","TUFO PARDUS Prostějov z.s.",0,0,null,null,null,null,null,0,null,null,null,null,null,null,null,null,null,0,null,0,0]
[115,"10047208163","POLANSKÝ, Daniel","TUFO PARDUS Prostějov z.s.",0,0,null,null,null,null,null,0,null,null,null,null,null,null,null,null,null,0,null,0,0]

{"sheet":"Kky","index":4,"n_rows":60,"n_cols":26,"rows_kept":60,"cut":false,"hidden":false,"merged":[]}
["Průběžné pořadí ČP mládeže a žen 2019"]
[]
["KADETKY"]
["Datum 6. 7. 2019                                                                   ","2019-09-09","17:58:13","Last RECALCULATION"]
[]
["Pořadí","UCI ID","Jméno a příjmení","Oddíl","Body CLK","Body TOP","Soběslav krit","Kyjov Krit.","Olomouc","Plzeň Krit","Ostrava krit.","Jablonec n. N.","Terezín","Zbraslav Sil.","Kyjov Sil.","Olomouc","Kroměříž","Plzeň","Bílovec","Nový Jičín","Ostrava","Jablonec n. N.","Židovice","MČR ČJ","MČR ČD","MČR"]
[1,"10047309712","JABORNÍKOVÁ, Anna","SPORTCOMPLEX BŘECLAV",{"$f":"SUM(G7:AK7)","v":1119},1084,50,30,50,37,22,0,null,60,35,100,100,100,75,100,60,0,null,110,40,150]
[2,"10047455313","RŮŽIČKOVÁ, Anna","DUKLA  PRAHA",945,877,20,27,22,17,30,20,null,100,100,55,55,51,100,60,100,0,null,68,50,70]
[3,"10047282935","BÁRTOVÁ, Gabriela","TUFO PARDUS Prostějov z.s.",899,818,17,22,24,30,50,30,null,45,32,51,32,75,60,75,75,75,null,84,12,110]
[4,"10047208769","HEJHALOVÁ, Dagmar","DUKLA  PRAHA",873,790,30,50,37,50,24,0,null,48,51,75,35,60,51,51,51,60,null,60,50,90]
[5,"10047404082","PROŠKOVÁ, Tereza","TJ STADION LOUNY",617,617,37,16,17,21,null,50,null,75,75,40,60,55,null,null,null,42,null,50,33,46]
[6,"10056227749","MIKŠANÍKOVÁ, Natálie","ACK Stará Ves nad Ondřejnicí",628,571,19,17,21,27,37,0,null,36,21,48,38,40,48,42,45,37,null,32,40,80]
[7,"10047403981","PARMOVÁ, Barbora","TJ STADION LOUNY",478,478,22,null,7,10,null,27,null,55,45,37,45,48,null,null,null,45,null,54,33,50]
[8,"10047448643","RUNTOVÁ, Hanka","TJ STADION LOUNY",527,462,16,1,11,14,27,19,null,38,28,36,48,38,42,45,48,40,null,29,8,39]
[9,"10047309914","NĚMCOVÁ, Barbora","SPORTCOMPLEX BŘECLAV",485,459,14,8,13,null,20,0,null,33,26,31,30,null,55,48,55,51,null,35,24,42]
[10,"10047765309","HLADÍKOVÁ, Kateřina","IVAR CS - AUTHOR TEAM",436,436,27,20,30,null,null,22,null,51,40,60,34,null,null,null,null,28,null,41,28,55]
[11,"10047405904","PETERKOVÁ, Sára Kateřina","Roman Kreuziger Cycling Academy",370,370,18,null,19,20,21,0,null,42,null,38,null,42,null,null,35,0,null,44,16,75]
[12,"10047310318","POULOVÁ, Michaela","SPORTCOMPLEX BŘECLAV",357,357,15,9,16,22,18,0,null,27,null,32,26,32,null,35,34,30,null,14,24,23]
[13,"10047767127","KOLÁŘOVÁ, Justýna","TJ AŠ ML.BOLESLAV",324,324,21,21,18,16,null,14,null,37,9,30,24,31,null,null,null,32,null,13,20,38]
[14,"10047420149","BARTOŠOVÁ, Martina","EXPRES CZ - TUFO  TEAM KOLÍN",315,315,10,null,null,13,null,19,null,40,24,null,36,34,null,null,null,38,null,38,20,43]
[15,10047303143,"SPĚŠNÁ, Simona","MS BIKE ACADEMY RACING",313,313,null,37,27,24,null,0,null,null,60,45,75,45,null,null,null,0,null,null,0]
[16,10047317287,"VINKLÁRKOVÁ, Marie","MG Bike Team",282,282,null,null,null,15,13,16,null,null,1,null,33,30,38,null,42,34,null,26,0,34]
[17,"10047358515","DRBOHLAVOVÁ, Eliška","KC KOOPERATIVA Jablonec nad Nisou, z.s.",269,269,null,null,3,18,null,27,null,null,27,28,27,35,null,null,null,36,null,23,4,41]
[18,10051855437,"MACHANCOVÁ, Andrea","TJ Sigma Hranice z.s.",262,262,null,13,10,null,19,0,null,null,null,22,null,null,45,37,37,0,null,47,0,32]
[19,"10047465316","DRÁPELOVÁ, Magdalena","MAPEI MERIDA KAŇKOVSKÝ",258,258,null,null,12,null,16,0,null,25,3,23,22,null,37,36,36,0,null,11,0,37]
[20,"10077159945","MARKOVÁ, Ema","DUKLA  PRAHA",224,224,8,3,null,7,11,0,null,31,12,null,null,26,null,31,33,29,null,5,4,24]
[21,"10046446412","MACÁNOVÁ, Markéta","Roman Kreuziger Cycling Academy",214,214,13,2,null,9,17,0,null,29,14,null,null,28,null,null,38,0,null,20,16,28]
[22,"10052349769","HOLÁŠKOVÁ, Justýna","TEAM FORMAN CINELLI",211,211,null,1,15,null,14,0,null,null,1,24,15,null,33,32,32,0,null,9,8,27]
[23,10047313247,"FOLTÝNOVÁ, Adéla","MS BIKE ACADEMY RACING",205,205,null,19,14,19,null,0,null,null,37,42,37,37,null,null,null,0,null,null,0]
[24,"10047279804","DOSTÁLOVÁ, Kateřina","Dakom Pharma Kyjov",193,193,12,10,9,12,null,13,null,28,7,null,null,29,null,null,null,31,null,12,0,30]
[25,10047257370,"BEDRNÍKOVÁ, Karolína","ECXPRES CZ - TUFO Team Kolín",190,190,null,24,null,null,null,0,null,null,42,null,51,null,null,null,null,0,null,null,28,45]
[26,10079801981,"JELÍNKOVÁ, Natálie","Drahanský Sport Tam",186,186,null,null,null,null,null,0,null,null,6,29,40,null,34,34,null,0,null,17,0,26]
[27,"10079506739","KRUTÍLKOVÁ, Kateřina","TEAM FORMAN CINELLI",183,183,null,null,8,null,15,0,null,null,2,null,25,null,35,33,40,0,null,null,0,25]
[28,10047304557,"VIKTOROVÁ, Nela","LYKO KLUB PRACHATICE z.s.",181,181,null,null,null,null,null,21,null,null,null,null,null,null,null,null,null,100,null,null,null,60]
[29,"10084925096","HŘEBAČKOVÁ, Michaela","SPORTCOMPLEX BŘECLAV",171,171,null,null,1,8,12,0,null,null,null,21,14,27,null,30,31,0,null,6,0,21]
[30,"10047287884","STAŇKOVÁ, Klára","CYKLO MIKULÁŠEK ZNOJMO o.s.",165,165,11,6,6,null,null,0,null,34,30,33,23,null,null,null,null,0,null,null,0,22]
[31,"10093317317","KŘENKOVÁ, Nikola","TUFO PARDUS Prostějov z.s.",162,162,7,null,1,null,null,0,null,35,18,25,21,null,null,null,null,0,null,10,12,33]
[32,10047324058,"HOJKOVÁ, Štěpánka","Jaroslav Kulhavý Cycling Team",133,133,null,12,null,null,null,37,null,null,36,null,null,null,null,null,null,48,null,null,0]
[33,"10047356087","HENDRYCHOVÁ, Lucie","Bike Freaks Holice",{"$f":"SUM(G39:AK39)","v":129},129,null,null,20,null,null,0,null,32,null,35,42,null,null,null,null,0,null,null,0]
[34,10047782887,"ZEMANOVÁ, Kristýna","TJ AŠ ML.BOLESLAV",103,103,24,null,null,null,null,24,null,null,null,null,null,null,null,null,null,55,null,null,0]
[35,10047412065,"PLESKAČOVÁ, Natálie","EXPRES CZ - TUFO  TEAM KOLÍN",94,94,null,null,null,null,null,0,null,null,29,null,null,null,null,null,null,0,null,null,0,65]
[36,"10047292332","DOSTÁLOVÁ, Lucie","LYKO KLUB PRACHATICE z.s.",94,94,null,null,null,null,null,15,null,null,null,null,null,null,null,null,null,35,null,null,0,44]
[37,10084771819,"JEŘÁBKOVÁ, Barbora","IVAR CS - AUTHOR TEAM",90,90,null,null,2,null,null,0,null,null,13,26,18,null,null,null,null,0,null,null,0,31]
[38,10047276669,"SMUTNÁ, Anna","Drahanský Sport Tam",86,86,null,null,null,null,null,0,null,null,22,27,null,null,null,null,null,0,null,8,0,29]
[39,10047337394,"MITRYCHOVÁ, Michaela","kola-bbm.cz",85,85,null,5,null,11,null,0,null,null,33,null,null,36,null,null,null,0,null,null,0]
[40,"10083491217","MASLEKOVOVÁ, Daniela","TJ STADION LOUNY",77,77,9,1,5,null,null,0,null,30,15,null,17,null,null,null,null,0,null,null,0]
[41,10047257471,"NOVOTNÁ, Aneta","ADASTRA Cycling Team",66,66,null,18,null,null,null,0,null,null,48,null,null,null,null,null,null,0,null,null,0]
[42,10053205793,"SROGOŇOVÁ Alena ","PROFI SPORT CHEB",52,52,null,null,null,null,null,0,null,null,null,null,16,null,null,null,null,0,null,null,0,36]
[43,10047284450,"SOBKOVÁ, Sabina","VRV TEAM",45,45,null,null,null,null,null,0,null,null,5,null,null,null,null,null,null,0,null,null,0,40]
[44,10054141542,"KNIHOVÁ, Kateřina","ECXPRES CZ - TUFO Team Kolín",39,39,null,14,null,null,null,0,null,null,25,null,null,null,null,null,null,0,null,null,0]
[45,10047392968,"SRNSKÁ, Patricie","CYKLO - SKI klubPolička",35,35,null,1,null,null,null,0,null,null,34,null,null,null,null,null,null,0,null,null,0]
[46,10059936886,"ŠIMOŇUKOVÁ, Natálie","Cykloteam MXM Hulín",35,35,null,null,null,null,null,0,null,null,null,null,null,null,null,null,null,0,null,null,null,35]
[47,10047368922,"ŠINDELÁŘOVÁ, Hana","Jaroslav Kulhavy Cycling Team",33,33,null,null,null,null,null,0,null,null,null,null,null,33,null,null,null,0]
[48,"xMM2007","Markéta MACÁNOVÁ","Roman Kreuziger Cycling Academy",33,33,null,null,null,null,null,0,null,null,null,null,null,null,null,null,null,33,null,null,0]
[49,"10092995395","URBANOVÁ, Michaela","FORCE KCK ZLÍN",30,30,null,null,null,null,null,0,null,26,4,null,null,null,null,null,null,0,null,null,0]
[50,10096104146,"LUZAROVA Tereza","FORCE TEAM JESENIK",27,27,null,null,null,null,null,0,null,null,null,null,null,null,null,null,null,0,null,7,0,20]
[51,"10047374174","DUCHKOVÁ, Tereza","KC KOOPERATIVA Jablonec nad Nisou, z.s.",24,24,null,null,null,null,null,0,null,24,null,null,null,null,null,null,null,0,null,null,0]
[52,10077193792,"BINDEROVÁ, Petra","HEAD Pro Team Opava",17,17,null,null,null,null,null,0,null,null,17,null,null,null,null,null,null,0,null,null,0]
[53,10047403274,"ORÁLKOVÁ, Kamila","SKP Duha Lanškroun",5,5,null,null,null,null,null,0,null,null,5,null,null,null,null,null,null,0,null,null,0]
[54,"10047425506","PETRŽÍLKOVÁ, Simona","DUKLA  PRAHA",0,0,null,null,null,null,null,0,null,null,null,null,null,null,null,null,null,0,null,null,0]

{"sheet":"Žst","index":5,"n_rows":116,"n_cols":27,"rows_kept":116,"cut":false,"hidden":false,"merged":[]}
["Průběžné pořadí ČP mládeže a žen 2019"]
[]
["ŽÁCI STARŠÍ"]
["Datum 6. 7. 2019                                                                   ","2019-09-09","17:59:17","Last RECALCULATION"]
[]
["Pořadí","UCI ID","Jméno a příjmení","Oddíl","Body CLK","Body TOP","Soběslav krit","Kyjov Krit.","Olomouc","Plzeň Krit","Ostrava krit.","Jablonec n. N.","Terezín","Zbraslav Sil.","Kyjov Sil.","Olomouc","Kroměříž","Plzeň","Bílovec","Nový Jičín","Ostrava","Jablonec n. N.","Židovice","MČR ČJ","MČR ČD","MČR","MZM"]
[1,"10047280309","KOBR, Richard","TJ LOKOMOTIVA BEROUN",{"$f":"SUM(G7:AM7)","v":1551},1406,50,50,50,30,30,37,null,60,100,55,100,75,60,60,100,60,null,60,24,150,400]
[2,"10047315469","ŠILHAVÝ, Ondřej","KOVO PRAHA",1362,1287,null,30,22,50,50,0,null,75,75,100,75,100,null,100,75,75,null,110,50,75,300]
[3,"10047280410","KOBR, Robert","TJ LOKOMOTIVA BEROUN",1057,941,30,20,37,24,37,30,null,51,55,60,51,45,100,75,55,55,null,41,24,90,177]
[4,"10059129059","ELBADRI, Jakub","IVAR CS - AUTHOR TEAM",906,906,null,37,24,null,null,50,null,55,60,75,55,null,null,null,null,51,null,84,33,110,272]
[5,"10047108941","PODAŘIL, Jan","DUKLA  PRAHA",737,737,37,24,19,27,null,0,null,100,51,45,48,60,37,45,null,0,null,44,20,80,100]
[6,"10081977411","PÁTÍK, Stanislav","TUFO PARDUS Prostějov z.s.",692,692,24,13,null,1,27,24,null,48,38,null,60,38,null,55,60,100,null,68,28,60,48]
[7,"10053209130","NOVÁK, Filip","PROFI SPORT CHEB",462,440,11,3,12,17,24,7,null,19,26,40,40,55,null,40,30,48,null,null,null,50,40]
[8,"10047349623","KOBLÍŽEK, Vojtěch","TUFO PARDUS Prostějov z.s.",435,433,21,21,15,37,17,2,null,30,25,48,36,37,null,null,51,38,null,13,28,16]
[9,"10012987573","MUROŇ, Matyáš","TJ FAVORIT BRNO",407,407,20,5,6,22,null,9,null,42,28,23,26,16,42,null,null,20,null,38,40,70]
[10,"10046656576","KARÁSEK, David","TJ FAVORIT BRNO",394,371,16,8,10,null,4,14,null,24,9,24,22,14,36,32,28,24,null,50,40,39]
[11,"10047234536","KOHOUT, Jaromír","Roman Kreuziger Cycling Academy",347,347,22,12,16,19,null,27,null,31,19,34,null,51,null,null,null,37,null,35,null,44]
[12,"10047271518","NOVOTNÝ, Ondřej","DUKLA  PRAHA",336,336,27,27,17,null,null,0,null,40,42,38,35,null,55,null,null,0,null,11,8,36]
[13,"10047253027","ŠILHAVÝ, Daniel","KOVO PRAHA",321,321,null,19,27,18,null,0,null,37,45,36,4,40,null,null,null,0,null,14,50,31]
[14,"10053651286","OPLUŠTIL, Ivo","TJ FAVORIT BRNO",319,309,12,null,14,11,16,1,null,10,null,30,23,23,21,27,31,45,null,null,null,55]
[15,"10047818354","JEŽEK, Václav","IVAR CS - AUTHOR TEAM",307,307,null,17,null,null,null,0,null,38,37,null,33,null,null,null,null,42,null,26,33,43,38]
[16,"10047452784","PŘIDAL, Tobiáš","MAPEI MERIDA KAŇKOVSKÝ",306,300,13,null,13,null,19,5,null,23,30,19,8,null,48,30,34,6,null,17,16,25]
[17,"10070221819","FÜRBACH, Miroslav","PROFI SPORT CHEB",300,299,10,1,11,20,21,0,null,6,1,28,28,32,29,29,42,0,null,null,12,30]
[18,"10074978152","BARBOŘÍK, Matěj","MG Bike Team",282,282,null,7,7,null,12,20,null,2,null,26,null,30,40,37,40,22,null,5,null,34]
[19,"10079785009","HORYNA, Vlastimil","LOKOMOTIVA NYMBURK",258,258,null,null,18,21,22,0,null,35,16,8,null,48,null,null,48,36,null,6]
[20,"10047336081","BERNÁT, Adam","DUKLA PRAHA",255,255,null,15,2,null,null,0,null,25,35,17,10,null,51,null,null,0,null,47,20,33]
[21,"10047422876","BÁRTA, Martin","KOVO PRAHA",253,253,null,22,21,null,null,19,null,34,36,42,45,null,null,null,null,34]
[22,"10047368518","MOROŇ, Daniel","HEAD PRO TEAM OPAVA",238,238,null,null,null,null,15,0,null,27,1,22,24,null,42,31,45,0,null,12,null,19]
[23,10094955405,"BITTNER Jan","MAPEI MERIDA KAŇKOVSKÝ",222,222,null,null,null,null,20,6,null,null,null,14,2,26,null,22,36,25,null,29,16,26]
[24,"10047382662","BRADÁČ, Adam","DUKLA  PRAHA",211,211,null,10,8,null,null,0,null,45,40,35,38,null,null,null,null,0,null,10,8,17]
[25,10047329920,"KRÁL, Kryštof","ADASTRA Cycling eam",208,208,null,null,null,null,18,0,null,null,29,null,null,null,35,23,38,0,null,null,null,65]
[26,"10053648963","VAVRO, Kristián","TJ FAVORIT BRNO",201,201,5,null,3,null,9,15,null,32,null,25,14,null,null,38,27,33]
[27,"10093204654","KREŠÁK, Kryštof","CYCLING ACADEMY TÁBOR",196,196,17,1,20,null,null,0,null,20,2,37,null,null,null,null,null,0,null,54,4,41]
[28,"10092872935","SMITH, Michael Filip","TJ FAVORIT BRNO",185,185,15,null,1,1,14,22,null,28,null,null,16,15,null,25,35,13]
[29,"10059526961","POLÁK, Matyáš","KC KOOPERATIVA Jablonec nad Nisou, z.s.",178,178,null,4,1,5,null,10,null,4,27,9,19,25,null,null,null,30,null,23,null,21]
[30,"10047334768","KUBA, Jakub","TJ AŠ ML.BOLESLAV",150,150,null,9,5,12,null,1,null,null,17,27,null,33,null,null,null,23,null,5,null,18]
[31,"10013440948","KRÝSL, Lukáš","MS BIKE ACADEMY RACING",149,149,null,null,null,10,null,0,null,null,27,null,32,42,38,null,null,0]
[32,"10047406005","PETERKA, David","SK PETŘÍN PLZEŇ",147,147,4,null,4,13,5,0,null,null,null,32,null,12,null,null,23,0,null,9,null,45]
[33,"10047418533","KROC, Vladimír","AC SPARTA PRAHA",{"$f":"SUM(G39:AM39)","v":138},138,null,null,null,6,null,19,null,33,null,null,null,18,null,null,null,16,null,null,null,46]
[34,"10093205260","JOHÁNEK, Dalibor","CYKLOSPORT-PITSTOP.CZ",136,136,null,2,null,1,null,21,null,null,13,18,null,19,null,null,null,35,null,null,null,27]
[35,"10080966688","NOVÁK, Tomáš","FORCE TEAM JESENÍK",134,134,1,null,null,null,2,0,null,1,10,10,9,null,30,28,33,0,null,null,null,10]
[36,"10004772683","PEŠEK, Adam","SK PETŘÍN PLZEŇ",131,131,2,null,null,15,null,1,null,13,null,13,null,17,17,null,null,17,null,7,null,29]
[37,"10059729752","HRDLIČKA, Adam","MAPEI MERIDA KAŇKOVSKÝ",125,125,null,null,null,2,null,8,null,null,null,null,null,27,32,null,37,19]
[38,"10080738235","ZAPLETAL, Jan","MAPEI MERIDA KAŇKOVSKÝ",124,124,null,null,null,null,11,0,null,null,null,null,null,2,24,20,32,0,null,null,null,35]
[39,"10047318402","SAMEC, Filip","IVAR CS - AUTHOR TEAM",123,123,null,null,1,null,null,1,null,22,null,33,null,34,null,null,null,32]
[40,"10046792073","ŠIMEČEK, David","CYCLING ACADEMY TÁBOR",114,114,19,18,null,null,null,0,null,29,20,null,null,28,null,null,null,0]
[41,"10082965292","KOVAČIČIN, Šimon","MAPEI MERIDA KAŇKOVSKÝ",113,113,14,1,9,3,null,0,null,9,6,15,null,31,25,null,null,0]
[42,"10084836988","KOTSCHY, Vít","SK PETŘÍN PLZEŇ",112,112,null,null,null,null,10,16,null,17,null,null,null,10,null,null,29,18,null,null,null,12]
[43,"10080411566","DUBEC, Štěpán","FORCE TEAM JESENÍK",111,111,null,null,1,null,13,0,null,null,null,12,null,null,null,24,26,0,null,20,null,15]
[44,"10047374982","MIŇOVSKÝ, Prokop","IVAR CS - AUTHOR TEAM",105,105,null,null,null,null,null,11,null,26,23,1,null,null,null,null,null,7,null,5,null,32]
[45,"10047402870","ZAHÁLKA, Štěpán","CK Slavoj Terezín - Cyklo City",104,104,9,null,null,null,null,0,null,5,1,null,null,22,null,null,null,0,null,32,12,23]
[46,"10046576552","ŠAFRÁNEK, Ondřej","AC SPARTA PRAHA",97,97,null,null,null,14,null,0,null,14,null,null,null,3,null,null,null,29,null,null,null,37]
[47,"10047380743","BITTMAN, Adam","KOVO PRAHA",96,96,18,null,null,7,null,0,null,36,null,null,null,35,null,null,null,0]
[48,"10081186960","VLK, Josef","MS BIKE ACADEMY RACING",93,93,null,null,null,null,null,0,null,8,4,null,29,21,31,null,null,0]
[49,"10047423886","FALTÝNEK, Jan","Cyklo Faltýnek",93,93,null,1,null,null,null,0,null,18,null,null,31,null,22,21,null,0]
[50,"10047422472","DVOŘÁČEK, Tobias","KOVO PRAHA",90,90,8,null,null,8,null,0,null,3,null,11,1,29,null,null,19,0,null,null,null,11]
[51,"10082332974","KRAVÁK, Vojtěch","MG BIKE TEAM",88,88,null,null,null,null,null,0,null,null,null,null,null,4,30,36,null,8,null,null,null,10]
[52,"10047438539","ZVĚDĚLÍK, Ondřej","ACS DRAK VRBNO",86,86,null,null,null,null,1,0,null,1,null,16,12,null,16,null,16,0,null,null,null,24]
[53,"10078831173","SOUKUP, Vojtěch","TUFO PARDUS Prostějov z.s.",85,85,null,null,null,null,1,0,null,1,null,1,null,20,null,16,25,11,null,null,null,10]
[54,"10009358056","RUBEŠ, Daniel","EXPRES CZ - TUFO  TEAM KOLÍN",80,80,null,null,null,null,null,13,null,null,null,null,27,null,null,null,null,40]
[55,"10047374073","HOJKA, František","Jaroslav Kulhavy Cycling Team",78,78,null,null,null,null,null,27,null,12,24,null,null,null,null,null,null,15]
[56,"10047373972","ŠUMPÍK, Pavel","Bike Freaks Holice",75,75,null,null,null,null,null,0,null,21,null,29,25,null,null,null,null,0]
[57,"10004746819","JEŽEK, David","Dakom Pharma Kyjov",75,75,7,null,null,null,6,0,null,11,null,4,3,11,null,null,18,0,null,5,null,10]
[58,"10079631223","ČERVENÝ, Tomáš","TJ FAVORIT BRNO",73,73,null,null,null,null,8,0,null,null,null,null,5,null,20,19,21,0]
[59,"10054142653","HELLMICH, Jonáš","KC KOOPERATIVA Jablonec nad Nisou, z.s.",72,72,null,null,null,null,null,4,null,16,8,null,18,null,null,null,null,26]
[60,null,"SYRKO, Robin","ACK Stará Ves nad Ondřejnicí",68,68,null,null,null,null,1,0,null,null,null,null,null,null,28,17,22,0]
[61,"10046565842","ZEDNÍK, Jiří","TJ STADION LOUNY",66,66,6,null,null,4,null,0,null,7,null,5,6,1,null,null,null,1,null,8,null,28]
[62,10046534318,"ŽENÍŠEK, Martin","LYKO KLUB PRACHATICE z.s.",66,66,null,null,null,null,null,0,null,null,null,null,null,36,null,null,null,10,null,null,null,20]
[63,10096726764,"KUDWEIS,Vít","CK Příbram - Fany GASTRO",66,66,null,null,null,null,3,3,null,null,null,2,null,13,null,null,24,21]
[64,"10047047610","HANZELKA, Lukáš","MG Bike Team",64,64,null,null,null,null,null,0,null,null,null,null,17,null,15,15,15,2]
[65,10047422977,"KRAUS, Tomáš","CYCLING ACADEMY TÁBOR",54,54,null,null,null,null,null,0,null,null,12,null,null,null,null,null,null,0,null,null,4,38]
[66,10028113109,"VAŠUT David","BIKE PRO RACING",47,47,null,null,null,null,null,0,null,null,null,null,7,null,null,null,null,0,null,null,null,40]
[67,"10047373467","ŠTIBINGR, Martin","KOVO PRAHA",44,44,1,null,null,null,7,0,null,null,null,null,null,5,null,14,17,0]
[68,10047410651,"DOBRÝ, Lukáš","CK LOKO Rakovník",null,43,null,null,null,null,null,12,null,null,null,null,null,null,null,null,null,31]
[69,10047401153,"URBAN, Miroslav","VRV TEAM",{"$f":"SUM(G75:AM75)","v":42},42,null,null,null,null,null,0,null,null,null,null,null,null,null,null,null,0,null,null,null,42]
[70,null,"JANÍK, David","KOVO PRAHA",37,37,null,null,null,null,null,0,null,null,null,6,null,9,null,null,null,0,null,null,null,22]
[71,10068131972,"Matěj PEKAŘ","IVAR CS - AUTHOR TEAM",28,28,null,null,null,null,null,0,null,null,null,null,null,null,null,null,null,28]
[72,null,"VAVRO, Kristián","TJ FAVORIT BRNO",26,26,null,null,null,null,null,0,null,null,null,null,null,null,26,null,null,0]
[73,null,"OSIČKA, Šimon","SPORTCOMPLEX BŘECLAV",23,23,null,null,null,null,null,0,null,null,null,null,null,null,13,10,null,0]
[74,"10052350173","KANÓCZ, Martin","TEAM FORMAN CINELLI",23,23,null,null,null,null,null,0,null,null,null,null,null,null,null,11,12,0]
[75,"10093204755","MORÁVEK, Jan","TJ FAVORIT BRNO",20,20,null,null,null,null,null,0,null,null,null,null,null,null,null,null,20,0]
[76,10093080271,"HYNEČEK, Jan","TUFO CZ Otrokovice",19,19,null,null,null,null,null,0,null,null,1,3,15,null,null,null,null,0]
[77,null,"MARTINÁSEK, Matěj","HEAD PRO TEAM OPAVA",19,19,null,null,null,null,null,0,null,null,null,null,null,null,19,null,null,0]
[78,10066160448,"Adam STREJČEK","RAJEC 100% TREK",19,19,null,null,null,null,null,0,null,null,null,null,null,7,null,null,null,12]
[79,null,"TALA, Erik","MG Bike Team",18,18,null,null,null,null,null,0,null,null,null,null,null,null,18,null,null,0]
[80,"10093194651","ŘETICKÝ, Tomáš","Vysočina Cycling",15,15,null,null,null,null,null,0,null,15,null,null,null,null,null,null,null,0]
[81,10047394483,"VACEK, Bertil","CK Příbram - Fany GASTRO",15,15,null,null,null,null,null,0,null,null,null,null,null,6,null,null,null,9]
[82,10047406510,"SVITÁK, Jakub","BIKE PRO RACING",14,14,null,null,null,null,null,0,null,null,null,null,null,null,null,null,null,0,null,null,null,14]
[83,null,"LIGOCKI, Darek","CK ORLÍK ORLOVÁ",14,14,null,null,null,null,null,0,null,null,null,null,null,null,null,null,14,0]
[84,null,"SVĚTLÍK, Adam","BIKE PRO RACING",13,13,null,null,null,null,null,0,null,null,null,null,null,null,null,null,null,0,null,null,null,13]
[85,null,"VLK, Jáchym","TJ FAVORIT BRNO",13,13,null,null,null,null,null,0,null,null,null,null,null,null,null,null,13,0]
[86,null,"RUMPLÍK, Jakub","TJ FAVORIT BRNO",11,11,null,null,null,null,null,0,null,null,null,null,null,null,null,null,11,0]
[87,10053950673,"JEŽEK Vojtěch","MS BIKE ACADEMY RACING",10,10,null,null,null,9,null,0,null,null,null,null,1,null,null,null,null,0]
[88,"10059529082","URBÁNEK, Tomáš","CYKLOTEAM OSTROV",9,9,null,null,null,1,null,0,null,null,null,null,null,8,null,null,null,0]
[89,"10082602352","VLČEK, Miroslav","SK PETŘÍN PLZEŇ",6,6,3,null,null,null,null,0,null,null,null,null,null,null,null,null,null,3]
[90,"10093188688","WALDHAUSER, Vít","ČEZ Cyklo Team Tábor",6,6,1,null,null,null,null,0,null,null,null,null,null,null,null,null,null,5]
[91,"10054141239","KNIHA, Petr","EXPRES CZ - TUFO  TEAM KOLÍN",5,5,null,null,null,null,null,0,null,null,5,null,null,null,null,null,null,0]
[92,"10058327494","Zdeněk HRADISKÝ","IVAR CS - AUTHOR TEAM",4,4,null,null,null,null,null,0,null,null,null,null,null,null,null,null,null,4]
[93,"10047379127","JEŘÁBEK, Ondřej","SP KOLO LOAP SPECIALIZED",2,2,null,null,null,null,null,0,null,null,null,null,1,1,null,null,null,0]
[94,"10047418634","GROH, Daniel","AUTHOR TEAM STUPNO",1,1,null,null,null,null,null,0,null,1,null,null,null,null,null,null,null,0]
[95,"10093446346","MAREK, Matyáš","PROFI SPORT CHEB",1,1,1,null,null,null,null,0,null,null,null,null,null,null,null,null,null,0]
[96,"10047391554","BRABEC, Adam","BIKE CLUB MĚSTO TOUŠKOV",1,1,null,null,null,null,null,0,null,null,null,null,null,1,null,null,null,0]
[97,10059128857,"BRÜCKNER, Filip","RAJEC 100% TREK",1,1,null,null,null,null,null,0,null,null,null,null,null,1,null,null,null,0]
[98,"10047404284","HEZINA, Jan","TJ STADION LOUNY",1,1,null,null,null,null,null,0,null,null,null,null,null,null,null,null,null,1]
[99,"10047448441","NOVÁČEK, Matyáš","TJ STADION LOUNY",1,1,null,null,null,null,null,0,null,null,null,null,null,null,null,null,null,1]
[100,"10091472192","Otakar ČAPEK","KC KOOPERATIVA JABLONEC N. N.",1,1,null,null,null,null,null,0,null,null,null,null,null,null,null,null,null,1]
[101,"10012390722","HLADÍK, Petr","SK PETŘÍN PLZEŇ",0,0,null,null,null,null,null,0,null,null,null,null,null,null,null,null,null,0]
[102,"10084011175","JEŽEK, Aleš","CK Dakom Pharma Kyjov",0,0,null,null,null,null,null,0,null,null,null,null,null,null,null,null,null,0]
[103,"10047399941","JURICA, Samuel","TUFO PARDUS Prostějov z.s.",0,0,null,null,null,null,null,0,null,null,null,null,null,null,null,null,null,0]
[104,"10091862822","KAŠPÁREK, Lukáš","TUFO PARDUS Prostějov z.s.",0,0,null,null,null,null,null,0,null,null,null,null,null,null,null,null,null,0]
[105,"10092952050","KLEPSA, Lukáš","AC SPARTA PRAHA",0,0,null,null,null,null,null,0,null,null,null,null,null,null,null,null,null,0]
[106,"10084839214","KORBEL, Daniel","TJ LOKOMOTIVA BEROUN",0,0,null,null,null,null,null,0,null,null,null,null,null,null,null,null,null,0]
[107,"10047452178","MINAŘÍK, Viktor","SPORTCOMPLEX BŘECLAV",0,0,null,null,null,null,null,0,null,null,null,null,null,null,null,null,null,0]
[108,"10047404385","PARMA, Václav","TJ STADION LOUNY",0,0,null,null,null,null,null,0,null,null,null,null,null,null,null,null,null,0]
[109,"10079889786","PEŠ, Ladislav","TEAM FORMAN CINELLI",0,0,null,null,null,null,null,0,null,null,null,null,null,null,null,null,null,0]
[110,"10047420957","PÍGL, Jan","TJ STADION LOUNY",0,0,null,null,null,null,null,0,null,null,null,null,null,null,null,null,null,0]

{"sheet":"Žky","index":6,"n_rows":76,"n_cols":26,"rows_kept":76,"cut":false,"hidden":false,"merged":[]}
["Průběžné pořadí ČP mládeže a žen 2019"]
[]
["ŽÁKYNĚ"]
["Datum 28. 5. 2019                                                                   ","2019-09-09","17:46:06","Last RECALCULATION"]
[]
["Pořadí","UCI ID","Jméno a příjmení","Oddíl","Body CLK","Body TOP","Soběslav krit","Kyjov Krit.","Olomouc","Plzeň krit","Ostrava krit.","Jablonec n. N.","Terezín","Zbraslav Sil.","Kyjov Sil.","Olomouc","Kroměžíž","Plzeň","Bílovec","Nový Jičín","Ostrava","Jablonec n. N.","Židovice","MČR ČJ","MČR ČD","MČR"]
[1,"10047334667","MARKOVÁ, Adéla","DUKLA  PRAHA",{"$f":"SUM(G7:AK7)","v":1030},973,37,30,30,30,30,24,null,33,75,100,51,75,null,100,100,75,null,110,40,90]
[2,"10047776625","DLASKOVÁ, Vanda","TJ AŠ ML.BOLESLAV",895,895,30,37,24,50,null,50,null,75,100,75,60,100,null,null,null,60,null,84,40,110]
[3,"10047400749","MÜLLEROVÁ, Patricie","TUFO PARDUS Prostějov z.s.",916,811,50,50,50,37,50,37,null,100,33,42,75,35,48,51,51,55,null,54,33,65]
[4,"10047400446","GRULICHOVÁ, Eliška","TUFO PARDUS Prostějov z.s.",707,630,22,14,20,17,18,27,null,37,55,60,26,60,55,75,55,37,null,50,33,46]
[5,"10047388726","JADRNÁ, Veronika","SPORTCOMPLEX BŘECLAV",620,620,27,21,22,null,22,0,null,40,30,55,32,null,75,55,48,0,null,68,50,75]
[6,"10047416008","NAVRKALOVÁ, Nikola","KC KOOPERATIVA Jablonec nad Nisou, z.s.",561,561,null,22,12,null,20,27,null,45,40,33,null,null,45,48,60,51,null,60,28,70]
[7,"10052355631","DUBCOVÁ, Štěpánka","TEAM FORMAN CINELLI",414,414,null,null,37,null,9,0,null,null,34,40,37,null,100,60,null,0,null,47,50]
[8,"10047078326","ČERNÁ, Kateřina","PROFI SPORT CHEB",393,393,24,15,null,18,13,16,null,null,36,null,null,38,40,38,37,36,null,41,null,41]
[9,"10092948212","KAŇKOVSKÁ, Nela","MAPEI MERIDA KAŇKOVSKÝ",374,373,14,1,2,20,10,19,null,23,20,26,null,36,42,null,42,34,null,35,12,38]
[10,"10047310217","HERMANOVÁ, Adéla","SPORTCOMPLEX BŘECLAV",336,336,21,5,27,16,24,0,null,19,15,19,23,null,37,21,26,0,null,32,20,31]
[11,"10083955100","ZOUBKOVÁ, Veronika","SPORTCOMPLEX BŘECLAV",324,324,20,9,10,15,3,0,null,26,17,37,24,33,null,null,30,0,null,44,20,36]
[12,"10047346690","RADOVÁ, Daniela","STEVENS Cykloklub Benešov",323,323,null,24,21,27,null,0,null,32,35,10,55,42,null,null,null,0,null,38,null,39]
[13,"10047450966","ŠULCOVÁ, Jana","EXPRES CZ - TUFO  TEAM KOLÍN",319,319,null,20,16,21,null,0,null,42,37,32,51,34,null,null,null,0,null,26,null,40]
[14,"10047410247","KOTLÍKOVÁ, Adéla","CK LOKO Rakovník",312,312,null,2,14,24,null,20,null,60,45,48,null,51,null,null,null,48]
[15,"10047438438","SMUDALOVÁ, Pavla","FORCE TEAM JESENÍK",308,308,null,16,17,null,14,0,null,38,26,28,25,null,null,31,34,0,null,20,16,43]
[16,10092938209,"CIBULKOVÁ, Tereza","BIKECLINIC JUNIOR TEAM",296,296,null,null,18,19,null,13,null,null,null,35,38,45,null,null,null,42,null,14,28,44]
[17,"10047274144","RUPOVÁ, Dominika","CK FESO PETŘVALD",265,265,null,null,6,null,27,0,null,22,null,23,28,null,38,42,28,0,null,null,16,35]
[18,"10047421866","DOSTÁLOVÁ, Anna","LYKO KLUB PRACHATICE z.s.",265,265,null,null,null,null,null,30,null,null,null,null,null,55,null,null,null,100,null,null,null,80]
[19,"10092625785","MIKULÁŠKOVÁ, Alice","TJ FAVORIT BRNO",264,264,null,null,15,null,8,19,null,31,null,30,null,40,null,36,45,40]
[20,"10079588884","NOVÁKOVÁ, Karla","Jaroslav Kulhavy Cycling Team",251,251,null,null,null,null,19,22,null,30,29,null,30,null,null,null,40,35,null,null,4,42]
[21,"10079506840","LAJCHOVÁ, Ema","TEAM FORMAN CINELLI",238,238,null,17,7,null,16,0,null,null,21,17,27,null,34,19,27,0,null,13,8,32]
[22,10092930226,"DVOŘÁKOVÁ, Petra","SKP Duha Lanškroun",214,214,null,null,null,null,37,0,null,null,23,null,40,null,null,40,null,0,null,29,null,45]
[23,10047362555,"PERNICKÁ, Adéla","BIKE PRO RACING",207,207,null,null,null,null,null,0,null,null,null,null,33,null,null,null,null,0,null,null,24,150]
[24,"10082405726","DOUDĚROVÁ, Kateřina","Jaroslav Kulhavy Cycling Team",207,207,null,null,null,null,5,14,null,29,24,null,null,null,null,null,38,38,null,null,4,55]
[25,10047395796,"ČERNÁ, Hana","Drahanský Sport Team",203,203,null,null,null,null,null,0,null,null,22,34,29,null,36,26,null,0,null,23,null,33]
[26,"10047386403","MÍČKOVÁ, Magdaléna","ACS DRAK VRBNO",189,189,null,10,9,null,null,0,null,20,11,16,19,null,32,20,null,0,null,10,12,30]
[27,null,"ŠPICAROVÁ, Karolína","CUBE Cyklo Špicar Jílemnice",189,189,null,null,11,null,17,0,null,null,null,38,null,48,null,null,75,0]
[28,10085271165,"JANÍKOVÁ, Anna","ACK Stará Ves nad Ondřejnicí",177,177,null,8,null,null,6,0,null,null,19,null,null,null,33,29,31,0,null,17,null,34]
[29,"10047331031","ČERNÁ, Karolína","TJ AŠ ML.BOLESLAV",175,175,null,27,null,null,null,0,null,55,51,null,42,null,null,null,null,0]
[30,10047415301,"NOSKOVÁ, Kateřina","CK Orlík Orlová",175,175,null,13,null,null,1,0,null,null,18,21,22,null,null,28,35,0,null,null,null,37]
[31,"10079505729","HOLÁŠKOVÁ, Amálie","TEAM FORMAN CINELLI",164,164,null,4,null,null,2,0,null,null,12,null,20,null,35,18,25,0,null,11,8,29]
[32,"10072551031","HERMANOVÁ, Beata","SPORTCOMPLEX BŘECLAV",151,151,19,null,4,null,21,0,null,25,null,27,null,null,null,23,32,0]
[33,"10093317216","RICHTEROVÁ, Karolína","TUFO PARDUS Prostějov z.s.",137,137,15,1,1,null,null,0,null,18,16,25,21,null,null,null,null,0,null,12,null,28]
[34,10056551384,"HANÁKOVÁ, Eliška","MORAVEC Team",134,134,null,null,null,null,null,0,null,null,60,null,null,null,null,null,null,0,null,null,24,50]
[35,"10079627987","LHOTÁKOVÁ, Adéla","Bike Freaks Holice",130,130,null,null,null,null,null,0,null,48,null,45,null,null,null,37,null,0]
[36,"10047347704","HODLOVÁ, Nikola","CYKLOSPORT-PITSTOP.CZ",129,129,null,3,null,22,null,0,null,35,32,null,null,37,null,null,null,0]
[37,"10078547348","HURAČOVÁ, Markéta","CK FESO PETŘVALD",128,128,null,null,19,null,7,0,null,21,null,24,null,null,null,24,33,0]
[38,"10092893143","DUBCOVÁ, Anna","TEAM FORMAN CINELLI",120,120,null,19,null,null,11,0,null,null,null,null,null,null,null,30,null,0,null,null,null,60]
[39,"10055862987","UHMANOVÁ, Kateřina","MS BIKE ACADEMY RACING",116,116,null,6,null,null,null,0,null,34,31,null,45,null,null,null,null,0]
[40,"10090877664","LALÁKOVÁ, Anna","KOVO PRAHA",110,110,18,null,null,null,12,0,null,24,null,null,null,null,null,27,29,0]
[41,"10079507345","POLÁŠKOVÁ, Ema","TEAM FORMAN CINELLI",104,104,null,null,3,null,15,0,null,null,null,18,null,null,null,32,36,0]
[42,10094810208,"RAPANTOVÁ Tereza","MG BIKE TEAM",102,102,null,null,1,null,null,11,null,null,null,12,null,null,null,17,23,30,null,8]
[43,"10047400143","KROUPOVÁ, Zuzana","AC SPARTA PRAHA",93,93,null,null,null,null,null,0,null,51,42,null,null,null,null,null,null,0]
[44,"10047409439","DOLEŽALOVÁ, Markéta","Bike Freaks Holice",85,85,null,null,null,null,null,0,null,27,null,22,36,null,null,null,null,0]
[45,"10079890594","RIEDLOVÁ, Nela","TEAM FORMAN CINELLI",79,79,null,11,1,null,null,0,null,null,13,null,18,null,null,null,null,0,null,9,null,27]
[46,"10047449754","VIKOVÁ, Hanka","DUKLA  PRAHA",78,78,null,null,8,null,null,0,null,null,null,36,null,null,null,34,null,0]
[47,10060004281,"CEBULOVÁ, Klára","BITTERS SUPERIOR CYKLOLIVE TEAM",null,66,null,null,null,null,null,21,null,null,null,null,null,null,null,null,null,45]
[48,"10093154740","LEBEDOVÁ, Kristýna","CK Jihočeské naděje",{"$f":"SUM(G54:AK54)","v":59},59,13,null,null,null,null,0,null,16,null,null,null,30,null,null,null,0]
[49,"10079420247","LIŠKOVÁ, Viola","G.BENEDIKT ŠVECCYKLOTEAM ŽELEČ",{"$f":"SUM(G55:AK55)","v":53},53,17,null,5,null,null,0,null,null,null,31,null,null,null,null,null,0]
[50,"10092873844","LAZAROVÁ, Elen","TJ FAVORIT BRNO",{"$f":"SUM(G56:AK56)","v":51},51,null,null,null,null,1,0,null,17,null,11,null,null,null,null,22,0]
[51,10093328330,"BOŘÁNKOVÁ, Lucie","AC SPARTA PRAHA",null,48,null,null,null,null,null,15,null,null,null,null,null,null,null,null,null,33]
[52,"10090352753","BENEŠOVÁ, Ema","SPORTCOMPLEX BŘECLAV",{"$f":"SUM(G58:AK58)","v":43},43,null,null,null,null,4,0,null,null,null,null,null,null,null,15,24,0]
[53,10063273484,"BURGERMEISTEROVÁ, Lucie","TJ SOKOL PLAVY - CYKLO BENDA",null,43,null,null,null,null,null,12,null,null,null,null,null,null,null,null,null,31]
[54,10059561014,"PANUŠOVÁ, Anna","Bike Freaks Holice",{"$f":"SUM(G60:AK60)","v":37},37,null,null,null,null,null,0,null,null,null,20,17,null,null,null,null,0]
[55,"10066429119","STRAKATÁ, Vendula","DUKLA  PRAHA",{"$f":"SUM(G61:AK61)","v":36},36,null,null,null,null,null,0,null,36,null,null,null,null,null,null,null,0]
[56,null,"PALAGYIOVÁ, Klára","ACK Stará Ves nad Ondřejnicí",{"$f":"SUM(G62:AK62)","v":35},35,null,null,null,null,null,0,null,null,null,null,null,null,null,14,21,0]
[57,10047346892,"DUŠKOVÁ, Kateřina","TJ Sokol Plavy - Cyklo Benda",{"$f":"SUM(G63:AK63)","v":32},32,null,7,null,null,null,0,null,null,25,null,null,null,null,null,null,0]
[58,"10090732467","HEZINOVÁ, Daniela","TJ STADION LOUNY",{"$f":"SUM(G64:AK64)","v":32},32,null,null,null,null,null,0,null,null,null,null,null,32,null,null,null,0]
[59,"10084771617","Adéla STRÁNSKÁ","IVAR CS - AUTHOR TEAM",null,32,null,null,null,null,null,null,null,null,null,null,null,null,null,null,null,32]
[60,10092977918,"KRÁLOVÁ, Julie","MS BIKE ACADEMY RACING",{"$f":"SUM(G66:AK66)","v":31},31,null,null,null,null,null,0,null,null,null,null,31,null,null,null,null,0]
[61,10093327421,"SYSLOVÁ, Barbara","CYKLOSPORT-PITSTOP.CZ",31,31,null,null,null,null,null,0,null,null,null,null,null,31,null,null,null,0]
[62,10092978120,"HOJDOVÁ, Michaela","MS BIKE ACADEMY RACING",29,29,null,null,null,null,null,0,null,null,null,null,null,29,null,null,null,0]
[63,"10066586036","GROHOVÁ, Lucie","AUTHOR TEAM STUPNO",28,28,null,null,null,null,null,0,null,28,null,null,null,null,null,null,null,0]
[64,"10090731962","LEBEDOVÁ, Adéla","CK Jihočeské naděje",28,28,null,null,null,null,null,0,null,null,null,null,null,28,null,null,null,0]
[65,"10079504517","KALČÍKOVÁ, Barbora","MS BIKE ACADEMY RACING",16,16,null,null,null,null,null,0,null,null,null,null,16,null,null,null,null,0]
[66,10079418833,"HRDINOVÁ, Anna","CYLING ACADEMY TÁBOR",16,16,16,null,null,null,null,0,null,null,null,null,null,null,null,null,null,0]
[67,null,"OSLADILOVÁ, Barbora","FORCE TEAM JESENÍK",15,15,null,null,1,null,null,0,null,null,null,14,null,null,null,null,null,0]
[68,"10056468734","OLIVOVÁ, Denisa","HEAD PRO TEAM OPAVA",14,14,null,null,null,null,null,0,null,null,14,null,null,null,null,null,null,0]
[69,null,"HRADÍLKOVÁ, Zuzana","MG BIKE TEAM",13,13,null,null,null,null,null,0,null,null,null,13,null,null,null,null,null,0]
[70,"10053649670","KUNCOVÁ, Barbora","TJ FAVORIT BRNO",0,0,null,null,null,null,null,0,null,null,null,null,null,null,null,null,null,0]

{"sheet":"Administrace","index":7,"n_rows":12,"n_cols":5,"rows_kept":12,"cut":false,"hidden":true,"merged":[]}
[null,null,null,"Pro listy OD",4]
[null,null,null,"Pro listy DO",4]
[null,"Provede výpočet dle metodiky ČSC - komise mládeže (výpočet může trvat několik minut)"]
[null,"Všechny vyjmenované TOP "]
[null,"5 TOP výsledků KRITERIUM"]
[null,"7 TOP Výsledků SILNICE"]
[]
[]
[null,"Rekapitulace"]
[null,"Posledni prepocet proveden:",null,"14:54:25"]
[null,"2019-09-09"]
[null,"19:45:21","19:46:39"]

{"sheet":"IMPORT","index":8,"n_rows":181,"n_cols":8,"rows_kept":181,"cut":false,"hidden":true,"merged":[]}
[]
["Parametry Importu",null,null,null,null,null,"Date","2019-09-09"]
["Kategorie",null,"Jmeno zavodu","Typ Zavodu",null,null,"Time","17:59:17"]
[6,null,16,1,null,null,"Startujiich",50]
["Položky pro import",null,null,null,null,null,"Kategorie","Žst"]
["Pořadí","Poradi ID Licence","Result","SILNIC","KRITERIUM",null,"TYP zavodu","SILNIC"]
["1.","10081977411","ok-PÁTÍK, Stanislav",100,50,null,"Zavod Jmeno","Jablonec n. N."]
["2.","10047315469","ok-ŠILHAVÝ, Ondřej",75,37]
["3.","10047280309","ok-KOBR, Richard",60,30]
["4.","10047280410","ok-KOBR, Robert",55,27]
["5.","10059129059","ok-ELBADRI, Jakub",51,24]
["6.","10053209130","ok-NOVÁK, Filip",48,22]
["7.","10053651286","ok-OPLUŠTIL, Ivo",45,21]
["8.","10047818354","ok-JEŽEK, Václav",42,20]
["9.","10009358056","ok-RUBEŠ, Daniel",40,19]
["10.","10047349623","ok-KOBLÍŽEK, Vojtěch",38,19]
["11.","10047234536","ok-KOHOUT, Jaromír",37,27]
["12.","10079785009","ok-HORYNA, Vlastimil",36,16]
["13.","10093205260","ok-JOHÁNEK, Dalibor",35,15]
["14.","10047422876","ok-BÁRTA, Martin",34,14]
["15.","10053648963","ok-VAVRO, Kristián",33,13]
["16.","10047318402","ok-SAMEC, Filip",32,12]
["17.","10047410651","ok-DOBRÝ, Lukáš",31,11]
["18.","10059526961","ok-POLÁK, Matyáš",30,10]
["19.","10046576552","ok-ŠAFRÁNEK, Ondřej",29,9]
["20.",10068131972,"ok-Matěj PEKAŘ",28,8]
["21.","10081593754","LICENCE NENALEZENA",27,7]
["22.","10054142653","ok-HELLMICH, Jonáš",26,6]
["23.","10094955405","ok-BITTNER Jan",25,5]
["24.","10046656576","ok-KARÁSEK, David",24,4]
["25.","10047334768","ok-KUBA, Jakub",23,3]
["26.","10074978152","ok-BARBOŘÍK, Matěj",22,2]
["27.","10096726764","ok-KUDWEIS,Vít",21,1]
["28.","10012987573","ok-MUROŇ, Matyáš",20,1]
["29.","10059729752","ok-HRDLIČKA, Adam",19,1]
["30.","10084836988","ok-KOTSCHY, Vít",18,1]
["31.","10004772683","ok-PEŠEK, Adam",17,0]
["32.","10047418533","ok-KROC, Vladimír",16,0]
["33.","10047374073","ok-HOJKA, František",15,0]
["34.","10047452784","ok-PŘIDAL, Tobiáš",14,0]
["35.","10092872935","ok-SMITH, Michael Filip",13,0]
["36.","10066160448","ok-Adam STREJČEK",12,0]
["37.","10078831173","ok-SOUKUP, Vojtěch",11,0]
["38.","10046534318","ok-ŽENÍŠEK, Martin",10,0]
["39.","10047394483","ok-VACEK, Bertil",9,0]
["40.","10082332974","ok-KRAVÁK, Vojtěch",8,0]
["41.","10047374982","ok-MIŇOVSKÝ, Prokop",7,0]
["42.","10047452784","ok-PŘIDAL, Tobiáš",6,0]
["43.","10093188688","ok-WALDHAUSER, Vít",5,0]
["44.","10058327494","ok-Zdeněk HRADISKÝ",4,0]
["45.","10082602352","ok-VLČEK, Miroslav",3,0]
["46.","10047047610","ok-HANZELKA, Lukáš",2,0]
["47.","10046565842","ok-ZEDNÍK, Jiří",1,0]
["48.","10047404284","ok-HEZINA, Jan",1,0]
["49.","10047448441","ok-NOVÁČEK, Matyáš",1,0]
["50.","10091472192","ok-Otakar ČAPEK",1,0]
["51.",null,null,0,0]
["52.",null,null,0,0]
["53.",null,null,0,0]
["54.",null,null,0,0]
["55.",null,null,0,0]
["56.",null,null,0,0]
["57.",null,null,0,0]
["58.",null,null,0,0]
["59.",null,null,0,0]
["60.",null,null,0,0]
["61.",null,null,0,0]
["62.",null,null,0,0]
["63.",null,null,0,0]
["64.",null,null,0,0]
["65.",null,null,0,0]
["66.",null,null,0,0]
["67.",null,null,0,0]
["68.",null,null,0,0]
["69.",null,null,0,0]
["70.",null,null,0,0]
["71.",null,null,0,0]
["72.",null,null,0,0]
["73.",null,null,0,0]
["74.",null,null,0,0]
["75.",null,null,0,0]
["76.",null,null,0,0]
["77.",null,null,0,0]
["78.",null,null,0,0]
["79.",null,null,0,0]
["80.",null,null,0,0]
["81.",null,null,0,0]
["82.",null,null,0,0]
["83.",null,null,0,0]
["84.",null,null,0,0]
["85.",null,null,0,0]
["86.",null,null,0,0]
["87.",null,null,0,0]
["88.",null,null,0,0]
["89.",null,null,0,0]
["90.",null,null,0,0]
["91.",null,null,0,0]
["92.",null,null,0,0]
["93.",null,null,0,0]
["94.",null,null,0,0]
["95.",null,null,0,0]
["96.",null,null,0,0]
["97.",null,null,0,0]
["98.",null,null,0,0]
["99.",null,null,0,0]
["100.",null,null,0,0]
["101.",null,null,0,0]
["102.",null,null,0,0]
["103.",null,null,0,0]
["104.",null,null,0,0]
["105.",null,null,0,0]
["106.",null,null,0,0]
["107.",null,null,0,0]
["108.",null,null,0,0]
["109.",null,null,0,0]
["110.",null,null,0,0]
["111.",null,null,0,0]
["112.",null,null,0]
["113.",null,null,0]
["114.",null,null,0]
["115.",null,null,0]
["116.",null,null,0]
["117.",null,null,0]
["118.",null,null,0]
["119.",null,null,0]
["120.",null,null,0]
["121.",null,null,0]
["122.",null,null,0]
["123.",null,null,0]
["124.",null,null,0]
["125.",null,null,0]
["126.",null,null,0]
["127.",null,null,0]
["128.",null,null,0]
["129.",null,null,0]
["130.",null,null,0]
["131.",null,null,0]
["132."]
["133."]
["134."]
["135."]
["136."]
["137."]
["138."]
["139."]
["140."]
["141."]
["142."]
["143."]
["144."]
["145."]
["146."]
["147."]
["148."]
["149."]
["150."]
["151."]
["152."]
["153."]
["154."]
["155."]
["156."]
["157."]
["158."]
["159."]
["160."]
["161."]
["162."]
["163."]
["164."]
["165."]
["166."]
["167."]
["168."]
["169."]
["170."]
["171."]
["172."]
["173."]
["174."]
["175."]

{"sheet":"Poznamky","index":9,"n_rows":51,"n_cols":20,"rows_kept":51,"cut":false,"hidden":true,"merged":[]}
[null,"Zacky",null,"ŽS",null,null,"Kky",null,"J",null,null,"Jky",null,null,null,"Z",null,null,"K"]
[50,10047776625,"ok-DLASKOVÁ, Vanda",10059129059,"ok-ELBADRI, Jakub",null,10047404082,"ok-PROŠKOVÁ, Tereza",10046718517,"ok-BITTNER, Pavel",null,10047392766,"ok-LOCHMANOVÁ, Aneta",null,null,10009335121,"LICENCE NENALEZENA",null,10047201392,"ok-TELECKÝ, Štěpán"]
[37,10047400749,"ok-MÜLLEROVÁ, Patricie",10047280309,"ok-KOBR, Richard",null,10047324058,"ok-HOJKOVÁ, Štěpánka",10048200189,"ok-BOUČEK, Jakub",null,10047281622,"ok-HARTYCHOVÁ, Nicole",null,null,10015426519,"ok-ŠVILHÁKOVÁ, Tereza",null,10059931735,"ok-ŠIROKÝ, Štěpán"]
[30,10047421866,"ok-DOSTÁLOVÁ, Anna",10047280410,"ok-KOBR, Robert",null,10047282935,"ok-BÁRTOVÁ, Gabriela",10047227462,"LICENCE NENALEZENA",null,10047786325,"ok-OBOŘILOVÁ Tereza",null,null,10023478327,"ok-JANŮ, Kamila",null,10047431263,"ok-KADLEC, Milan"]
[27,10047416008,"ok-NAVRKALOVÁ, Nikola",10047374073,"ok-HOJKA, František",null,10047403981,"ok-PARMOVÁ, Barbora",10048201203,"ok-STOČEK, Bruno",null,10047324159,"LICENCE NENALEZENA",null,null,10014825018,"ok-VORÁČOVÁ, Naďa",null,10056008184,"ok-SEEMAN, Adam"]
[24,10047334667,"ok-MARKOVÁ, Adéla",10081977411,"ok-PÁTÍK, Stanislav",null,10047782887,"ok-ZEMANOVÁ, Kristýna",10047277073,"ok-ŤOUPALÍK, Jakub",null,10047371144,"ok-NAVRKALOVÁ, Michaela",null,null,10023478226,"ok-VANÍČKOVÁ, Tereza",null,10018791712,"ok-MRÁZ, Daniel"]
[22,10079588884,"ok-NOVÁKOVÁ, Karla",10092872935,"ok-SMITH, Michael Filip",null,10047765309,"ok-HLADÍKOVÁ, Kateřina",10000832665,"ok-CAMRDA, Karel",null,10092874046,"ok-SVOBODOVÁ, Gabriela",null,null,10010944008,"ok-UNGERMANOVÁ, Elizabeth",null,10092747542,"ok-FIALA, Matyáš"]
[21,10060004281,"LICENCE NENALEZENA",10093205260,"ok-JOHÁNEK, Dalibor",null,10047304557,"ok-VIKTOROVÁ, Nela",10047786628,"ok-HNÍK, Jakub",null,10047329718,"ok-KLÍMOVÁ, Natálie",null,null,null,null,null,10047348108,"ok-STŘÍŽ, Matyáš"]
[20,10047410247,"ok-KOTLÍKOVÁ, Adéla",10074978152,"ok-BARBOŘÍK, Matěj",null,10047455313,"ok-RŮŽIČKOVÁ, Anna",10047236758,"ok-HETFLEIŠ, Petr",null,10092980544,"ok-KRAVÁKOVÁ, Gabriela",null,null,null,null,null,10047287783,"ok-JELÍNEK, Marek"]
[19,10092625785,"ok-MIKULÁŠKOVÁ, Alice",10047422876,"ok-BÁRTA, Martin",null,10047448643,"ok-RUNTOVÁ, Hanka",10047374275,"ok-RUNT, Lukáš",null,10097269358,"LICENCE NENALEZENA",null,null,null,null,null,10047292130,"ok-OBDRŽÁLEK, Tomáš"]
[19,10092948212,"ok-KAŇKOVSKÁ, Nela",10047418533,"ok-KROC, Vladimír",null,10047420149,"ok-BARTOŠOVÁ, Martina",10046043254,"LICENCE NENALEZENA",null,10047781978,"ok-VERNEROVÁ, Klára",null,null,null,null,null,10046370125,"ok-JINDŘICH, Pavel"]
[27,10047400446,"ok-GRULICHOVÁ, Eliška",10047234536,"ok-KOHOUT, Jaromír",null,10047358515,"ok-DRBOHLAVOVÁ, Eliška",10047304456,"ok-ČEKAL, Josef",null,null,null,null,null,null,null,null,10048001139,"ok-VÁVRA, Petr"]
[16,10047078326,"ok-ČERNÁ, Kateřina",10084836988,"ok-KOTSCHY, Vít",null,10047317287,"ok-VINKLÁRKOVÁ, Marie",10047256461,"ok-BREDLER, Matyáš Jiří",null,null,null,null,null,null,null,null,10086057875,"ok-NOVÁK, Pavel"]
[15,10093328330,"LICENCE NENALEZENA",10053648963,"ok-VAVRO, Kristián",null,10047292332,"ok-DOSTÁLOVÁ, Lucie",10065321602,"ok-KOPELENT, David",null,null,null,null,null,null,null,null,10047286672,"ok-DOSTÁL, Václav"]
[14,10082405726,"ok-DOUDĚROVÁ, Kateřina",10046656576,"ok-KARÁSEK, David",null,10047767127,"ok-KOLÁŘOVÁ, Justýna",10047309409,"ok-KŘENEK, Adam",null,null,null,null,null,null,null,null,10047224937,"ok-STRÁNSKÝ, Matěj"]
[13,10092938209,"ok-CIBULKOVÁ, Tereza",10009358056,"ok-RUBEŠ, Daniel",null,10047279804,"ok-DOSTÁLOVÁ, Kateřina",10047299103,"ok-KOLAŘÍK, Lukáš",null,null,null,null,null,null,null,null,10047394382,"ok-OTTA, Josef"]
[12,10063273484,"LICENCE NENALEZENA",10047410651,"LICENCE NENALEZENA",null,null,null,10047288288,"ok-KUČERA Jakub",null,null,null,null,null,null,null,null,10047292635,"ok-VALL, Jan"]
[11,10094810208,"LICENCE NENALEZENA",10047374982,"ok-MIŇOVSKÝ, Prokop",null,null,null,10048203930,"ok-MÜLLER, Maxim",null,null,null,null,null,null,null,null,10047443084,"ok-VEVERKA, Václav"]
[10,null,null,10059526961,"ok-POLÁK, Matyáš",null,null,null,10047455111,"ok-RAČAN, David",null,null,null,null,null,null,null,null,10047248377,"ok-ČERVÍČEK, David"]
[9,null,null,10012987573,"ok-MUROŇ, Matyáš",null,null,null,10047449855,"ok-HORULKO, Vladyslav",null,null,null,null,null,null,null,null,10047263434,"ok-VONDRÁČEK, Jan"]
[8,null,null,10059729752,"ok-HRDLIČKA, Adam",null,null,null,10047218873,"ok-LIŠKA, Marek",null,null,null,null,null,null,null,null,10047400547,"ok-KOBLÍŽEK, Matyáš"]
[7,null,null,10053209130,"ok-NOVÁK, Filip",null,null,null,10047448744,"ok-ČÍŽEK, Vojtěch",null,null,null,null,null,null,null,null,10047363464,"ok-VOLF, Pavel"]
[6,null,null,10094955405,"ok-BITTNER Jan",null,null,null,10077349905,"ok-PRCHLÍK, Kryštof",null,null,null,null,null,null,null,null,10005541613,"ok-VYSOČAN, Daniel"]
[5,null,null,10047452784,"ok-PŘIDAL, Tobiáš",null,null,null,null,null,null,null,null,null,null,null,null,null,10047423179,"ok-RUBÁŠ, Matouš"]
[4,null,null,10054142653,"ok-HELLMICH, Jonáš",null,null,null,null,null,null,null,null,null,null,null,null,null,10055481556,"ok-HAVRLANT, Jakub"]
[3,null,null,10096726764,"LICENCE NENALEZENA",null,null,null,null,null,null,null,null,null,null,null,null,null,10047415196,"ok-PŘIDAL, Tomáš"]
[2,null,null,10047349623,"ok-KOBLÍŽEK, Vojtěch",null,null,null,null,null,null,null,null,null,null,null,null,null,10047763689,"ok-DOLEŽAL, Tomáš"]
[1,null,null,10004772683,"ok-PEŠEK, Adam",null,null,null,null,null,null,null,null,null,null,null,null,null,10058654264,"ok-HYTYCH, Matěj"]
[1,null,null,10047334768,"ok-KUBA, Jakub",null,null,null,null,null,null,null,null,null,null,null,null,null,10047281319,"ok-STANĚK, Jakub"]
[1,null,null,10047318402,"ok-SAMEC, Filip",null,null,null,null,null,null,null,null,null,null,null,null,null,10011516409,"ok-TERŠL, Robin"]
[1,null,null,10053651286,"ok-OPLUŠTIL, Ivo",null,null,null,null,null,null,null,null,null,null,null,null,null,10092869905,"ok-KRUPKA, Štěpán"]
[null,null,null,10046534318,"ok-ŽENÍŠEK, Martin",null,null,null,null,null,null,null,null,null,null,null,null,null,10047289201,"ok-ŠKUREK, Kryštof"]
[null,null,null,10046576552,"ok-ŠAFRÁNEK, Ondřej",null,null,null,null,null,null,null,null,null,null,null,null,null,10047329314,"ok-PADĚLEK, Viktor"]
[null,null,null,10047394483,"ok-VACEK, Bertil",null,null,null,null,null,null,null,null,null,null,null,null,null,10047357808,"ok-HÁK, Jakub"]
[null,null,null,10091472192,"LICENCE NENALEZENA",null,null,null,null,null,null,null,null,null,null,null,null,null,10092711166,"ok-OSWALD, Jan"]
[null,null,null,10047448441,"ok-NOVÁČEK, Matyáš",null,null,null,null,null,null,null,null,null,null,null,null,null,10047440862,"ok-JANÍČEK, Jakub"]
[null,null,null,10047404284,"ok-HEZINA, Jan",null,null,null,null,null,null,null,null,null,null,null,null,null,10046677087,"ok-CÍRKVA, Vojtěch"]
[null,null,null,10079785009,"ok-HORYNA, Vlastimil",null,null,null,null,null,null,null,null,null,null,null,null,null,10047168454,"ok-POKORNÝ, Ondřej"]
[null,null,null,10081593754,"LICENCE NENALEZENA",null,null,null,null,null,null,null,null,null,null,null,null,null,10047362050,"ok-KOVAŘČÍK, Petr"]
[null,null,null,10082332974,"LICENCE NENALEZENA",null,null,null,null,null,null,null,null,null,null,null,null,null,10047443589,"ok-ŠTEC, Radovan"]
[null,null,null,10066160448,"ok-Adam STREJČEK",null,null,null,null,null,null,null,null,null,null,null,null,null,10046607874,"ok-SVOBODA, Pavel"]
[null,null,null,10047452784,"ok-PŘIDAL, Tobiáš",null,null,null,null,null,null,null,null,null,null,null,null,null,10047212712,"ok-KAŇKOVSKÝ, Adam"]
[null,null,null,10047047610,"ok-HANZELKA, Lukáš",null,null,null,null,null,null,null,null,null,null,null,null,null,10082747953,"ok-HOLEC Timon"]
[null,null,null,10093188688,"ok-WALDHAUSER, Vít",null,null,null,null,null,null,null,null,null,null,null,null,null,10092930024,"ok-PETŘÍK, Jakub"]
[null,null,null,10078831173,"ok-SOUKUP, Vojtěch",null,null,null,null,null,null,null,null,null,null,null,null,null,10089720132,"ok-CHOMA, Eduard"]
[null,null,null,10046565842,"ok-ZEDNÍK, Jiří",null,null,null,null,null,null,null,null,null,null,null,null,null,10047333758,"LICENCE NENALEZENA"]
[null,null,null,10058327494,"LICENCE NENALEZENA",null,null,null,null,null,null,null,null,null,null,null,null,null,10046409430,"ok-MAZEL, Ondřej"]
[null,null,null,10085962794,"LICENCE NENALEZENA",null,null,null,null,null,null,null,null,null,null,null,null,null,10047318705,"ok-VIK, Matěj"]
[null,null,null,10047430758,"LICENCE NENALEZENA",null,null,null,null,null,null,null,null,null,null,null,null,null,10080408233,"ok-ZÁBRODSKÝ, Filip"]
[null,null,null,10082602352,"ok-VLČEK, Miroslav",null,null,null,null,null,null,null,null,null,null,null,null,null,10003021936,"ok-VRÁNA, David"]
[null,null,null,10047420957,"ok-PÍGL, Jan",null,null,null,null,null,null,null,null,null,null,null,null,null,10085014521,"ok-DRÁPELA, Matěj"]

{"sheet":"TEMP","index":10,"n_rows":51,"n_cols":11,"rows_kept":51,"cut":false,"hidden":true,"merged":[]}
[{"$f":"SUM(B1:B5)","v":0},0,"Kritasy","TOP 5",null,"KATEGORIE","Typ zavodu","Zavod Jmeno",null,"Silnic","riterium"]
[{"$f":"SUM(B1:B7)","v":0},0,"Silnice","TOP 7",null,"Ž","SILNIC","Soběslav krit",null,100,50]
[{"$f":"SUM(B1:B14)","v":0},null,"VIP","ALL",null,"J","KRITERIUM","Kyjov Krit.",null,75,37]
[null,null,null,null,null,"Jky",null,"Olomouc",null,60,30]
[null,null,null,null,null,"K",null,"Plzeň krit.",null,55,27]
[null,null,null,null,null,"Kky",null,"Ostrava krit",null,51,24]
[null,null,null,null,null,"ŽSt",null,"Jablonec n. N.",null,48,22]
[null,null,null,null,null,"Žky",null,"Terezín",null,45,21]
[null,null,null,null,null,null,null,"Zbraslav Sil.",null,42,20]
[null,null,null,null,null,null,null,"Kyjov Sil.",null,40,19]
[null,null,null,null,null,null,null,"Olomouc",null,38,19]
[null,null,null,null,null,null,null,"Kroměžíž",null,37,27]
[null,null,null,null,null,null,null,"Plzeň",null,36,16]
[null,null,null,null,null,null,null,"Bílovec",null,35,15]
[null,null,null,null,null,null,null,"Nový Jičín",null,34,14]
[null,null,null,null,null,null,null,"Ostrava",null,33,13]
[null,null,null,null,null,null,null,"Jablonec n. N.",null,32,12]
[null,null,null,null,null,null,null,"Židovice",null,31,11]
[null,null,null,null,null,null,null,null,null,30,10]
[null,null,null,null,null,null,null,null,null,29,9]
[null,null,null,null,null,null,null,null,null,28,8]
[null,null,null,null,null,null,null,null,null,27,7]
[null,null,null,null,null,null,null,null,null,26,6]
[null,null,null,null,null,null,null,null,null,25,5]
[null,null,null,null,null,null,null,null,null,24,4]
[null,null,null,null,null,null,null,null,null,23,3]
[null,null,null,null,null,null,null,null,null,22,2]
[null,null,null,null,null,null,null,null,null,21,1]
[null,null,null,null,null,null,null,null,null,20,1]
[null,null,null,null,null,null,null,null,null,19,1]
[null,null,null,null,null,null,null,null,null,18,1]
[null,null,null,null,null,null,null,null,null,17]
[null,null,null,null,null,null,null,null,null,16]
[null,null,null,null,null,null,null,null,null,15]
[null,null,null,null,null,null,null,null,null,14]
[null,null,null,null,null,null,null,null,null,13]
[null,null,null,null,null,null,null,null,null,12]
[null,null,null,null,null,null,null,null,null,11]
[null,null,null,null,null,null,null,null,null,10]
[null,null,null,null,null,null,null,null,null,9]
[null,null,null,null,null,null,null,null,null,8]
[null,null,null,null,null,null,null,null,null,7]
[null,null,null,null,null,null,null,null,null,6]
[null,null,null,null,null,null,null,null,null,5]
[null,null,null,null,null,null,null,null,null,4]
[null,null,null,null,null,null,null,null,null,3]
[null,null,null,null,null,null,null,null,null,2]
[null,null,null,null,null,null,null,null,null,1]
[null,null,null,null,null,null,null,null,null,1]
[null,null,null,null,null,null,null,null,null,1]
[null,null,null,null,null,null,null,null,null,1]